Workbook

Sheet DATA (hidden)
X2: Match Statistics | AC2: Match | AE2: Set 1 | AG2: Set 2 | AI2: Set 3 | AK2: Set 4 | AQ2: Score | AR2: 4 | AS2: 6 | AU2: 7 | AV2: 5 | AX2: 6 | AY2: 3 | BA2: 6 | BB2: 4 | BC2: Score
B3: Aces | I3: Games | R3: Break Points | X3: Roger Federer (SUI) | Z3: Andy Murray (GBR) | AB3: Stat | AC3: RF | AD3: AM | AE3: RF | AF3: AM | AG3: RF | AH3: AM | AI3: RF | AJ3: AM | AK3: RF | AL3: AM
B4: Time | C4: Player | D4: Set | E4: Game | F4: Speed | G4: Player # | I4: Start | J4: Set | K4: Game | L4: Duration | M4: Server | N4: Winner | O4: Server # | P4: Winner # | R4: Time | S4: Player | T4: Won? | U4: Player # | V4: Won Player # | X4: 12 | Y4: Aces | Z4: 16 | AB4: Aces | AC4: 12 | AD4: 16 | AE4: 2 | AF4: 4 | AG4: 3 | AH4: 3 | AI4: 4 | AJ4: 3 | AK4: 3 | AL4: 6 | AQ4: Aces | AR4: =AE4 -> 2 | AS4: =AF4 -> 4 | AU4: =AG4 -> 3 | AV4: =AH4 -> 3 | AX4: =AI4 -> 4 | AY4: =AJ4 -> 3 | BA4: =AK4 -> 3 | BB4: =AL4 -> 6 | BC4: Aces
B5: 00:08:00 | C5: F | D5: 1 | E5: 3 | F5: 189 | G5: =IF(C5="F",1,2) -> 1 | I5: 00:00:00 | J5: 1 | K5: 1 | L5: =I6-I5 -> 00:02:00 | M5: F | N5: M | O5: =IF(M5="F",1,2) -> 1 | P5: =IF(N5="F",1,2) -> 2 | R5: 00:02:00 | S5: M | T5: YES | U5: =IF(S5="F",1,2) -> 2 | V5: =IF(T5="Yes",U5,"") -> 2 | X5: 3 | Y5: Double faults | Z5: 1 | AB5: Double faults | AC5: 3 | AD5: 1 | AG5: 2 | AH5: 0 | AK5: 1 | AL5: 1 | AQ5: Double faults | AR5: =AE5 -> 0 | AS5: 0 | AU5: =AG5 -> 2 | AV5: =AH5 -> 0 | AX5: =AI5 -> 0 | AY5: =AJ5 -> 0 | BA5: =AK5 -> 1 | BB5: =AL5 -> 1 | BC5: Double faults
B6: 00:14:00 | C6: M | D6: 1 | E6: 4 | F6: 206 | G6: =IF(C6="F",1,2) -> 2 | I6: 00:02:00 | J6: 1 | K6: 2 | L6: =I7-I6 -> 00:04:00 | M6: M | N6: M | O6: =IF(M6="F",1,2) -> 2 | P6: =IF(N6="F",1,2) -> 2 | R6: 00:19:00 | S6: F | T6: YES | U6: =IF(S6="F",1,2) -> 1 | V6: =IF(T6="Yes",U6,"") -> 1 | X6: 90 of 131 = 69 % | Y6: 1st serves in | Z6: 88 of 157 = 56 % | AB6: 1st serves in | AC6: 90 of 131 = 69 % | AD6: 88 of 157 = 56 % | AE6: 23 of 34 = 68 % | AF6: 26 of 45 = 58 % | AG6: 30 of 42 = 71 % | AH6: 26 of 36 = 72 % | AI6: 16 of 25 = 64 % | AJ6: 21 of 43 = 49 % | AK6: 21 of 30 = 70 % | AL6: 15 of 33 = 45 %
B7: 00:17:00 | C7: M | D7: 1 | E7: 4 | F7: 209 | G7: 2 | I7: 00:06:00 | J7: 1 | K7: 3 | L7: 00:05:00 | M7: F | N7: F | O7: 1 | P7: 1 | R7: 00:43:00 | S7: F | U7: 1 | X7: 68 of 90 = 76 % | Y7: 1st serve points won | Z7: 61 of 88 = 69 % | AB7: 1st serve points won | AC7: 68 of 90 = 76 % | AD7: 61 of 88 = 69 % | AE7: 15 of 23 = 65 % | AF7: 19 of 26 = 73 % | AG7: 23 of 30 = 77 % | AH7: 20 of 26 = 77 % | AI7: 14 of 16 = 88 % | AJ7: 12 of 21 = 57 % | AK7: 16 of 21 = 76 % | AL7: 10 of 15 = 67 % | AQ7: 1st serves in | AR7: =VALUE(TRIM(MID(AE6,FIND("=",AE6)+2,99))) -> 0.68 | AS7: =VALUE(TRIM(MID(AF6,FIND("=",AF6)+2,99))) -> 0.58 | AU7: =VALUE(TRIM(MID(AG6,FIND("=",AG6)+2,99))) -> 0.71 | AV7: =VALUE(TRIM(MID(AH6,FIND("=",AH6)+2,99))) -> 0.72 | AX7: =VALUE(TRIM(MID(AI6,FIND("=",AI6)+2,99))) -> 0.64 | AY7: =VALUE(TRIM(MID(AJ6,FIND("=",AJ6)+2,99))) -> 0.49 | BA7: =VALUE(TRIM(MID(AK6,FIND("=",AK6)+2,99))) -> 0.7 | BB7: =VALUE(TRIM(MID(AL6,FIND("=",AL6)+2,99))) -> 0.45 | BC7: 1st serves in
B8: 00:27:00 | C8: M | D8: 1 | E8: 6 | F8: 206 | G8: 2 | I8: 00:11:00 | J8: 1 | K8: 4 | L8: 00:08:00 | M8: M | N8: F | O8: 2 | P8: 1 | R8: 00:44:00 | S8: F | U8: 1 | X8: 20 of 41 = 49 % | Y8: 2nd serve points won | Z8: 33 of 69 = 48 % | AB8: 2nd serve points won | AC8: 20 of 41 = 49 % | AD8: 33 of 69 = 48 % | AE8: 3 of 11 = 27 % | AF8: 7 of 19 = 37 % | AG8: 6 of 12 = 50 % | AH8: 5 of 10 = 50 % | AI8: 6 of 9 = 67 % | AJ8: 12 of 22 = 55 % | AK8: 5 of 9 = 56 % | AL8: 9 of 18 = 50 % | AQ8: 1st serve points won | AR8: =VALUE(TRIM(MID(AE7,FIND("=",AE7)+2,99))) -> 0.65 | AS8: =VALUE(TRIM(MID(AF7,FIND("=",AF7)+2,99))) -> 0.73 | AU8: =VALUE(TRIM(MID(AG7,FIND("=",AG7)+2,99))) -> 0.77 | AV8: =VALUE(TRIM(MID(AH7,FIND("=",AH7)+2,99))) -> 0.77 | AX8: =VALUE(TRIM(MID(AI7,FIND("=",AI7)+2,99))) -> 0.88 | AY8: =VALUE(TRIM(MID(AJ7,FIND("=",AJ7)+2,99))) -> 0.57 | BA8: =VALUE(TRIM(MID(AK7,FIND("=",AK7)+2,99))) -> 0.76 | BB8: =VALUE(TRIM(MID(AL7,FIND("=",AL7)+2,99))) -> 0.67 | BC8: 1st serve points won
B9: 00:33:00 | C9: F | D9: 1 | E9: 7 | F9: 193 | G9: 1 | I9: 00:19:00 | J9: 1 | K9: 5 | L9: 00:07:00 | M9: F | N9: F | O9: 1 | P9: 1 | R9: 00:51:00 | S9: M | T9: YES | U9: 2 | V9: 2 | X9: 130 MPH | Y9: Fastest serve | Z9: 133 MPH | AB9: Fastest serve | AC9: 130 MPH | AD9: 133 MPH | AE9: 124 MPH | AF9: 133 | AG9: 130 | AH9: 132 | AI9: 128 | AJ9: 133 | AK9: 126 | AL9: 131 | AQ9: Average 1st serve speed | AR9: =AE10 -> 115 MPH | AS9: =AF10 -> 120 | AU9: =AG10 -> 116 | AV9: =AH10 -> 120 | AX9: =AI10 -> 117 | AY9: =AJ10 -> 124 | BA9: =AK10 -> 116 | BB9: =AL10 -> 120 | BC9: Average 1st serve speed
B10: 00:56:00 | C10: M | D10: 1 | E10: 10 | F10: 212 | G10: 2 | I10: 00:26:00 | J10: 1 | K10: 6 | L10: 00:06:00 | M10: M | N10: M | O10: 2 | P10: 2 | R10: 01:05:00 | S10: F | U10: 1 | X10: 116 MPH | Y10: Average 1st serve speed | Z10: 121 MPH | AB10: Average 1st serve speed | AC10: 116 MPH | AD10: 121 MPH | AE10: 115 MPH | AF10: 120 | AG10: 116 | AH10: 120 | AI10: 117 | AJ10: 124 | AK10: 116 | AL10: 120 | AQ10: 2nd serve points won | AR10: =VALUE(TRIM(MID(AE8,FIND("=",AE8)+2,99))) -> 0.27 | AS10: =VALUE(TRIM(MID(AF8,FIND("=",AF8)+2,99))) -> 0.37 | AU10: =VALUE(TRIM(MID(AG8,FIND("=",AG8)+2,99))) -> 0.5 | AV10: =VALUE(TRIM(MID(AH8,FIND("=",AH8)+2,99))) -> 0.5 | AX10: =VALUE(TRIM(MID(AI8,FIND("=",AI8)+2,99))) -> 0.67 | AY10: =VALUE(TRIM(MID(AJ8,FIND("=",AJ8)+2,99))) -> 0.55 | BA10: =VALUE(TRIM(MID(AK8,FIND("=",AK8)+2,99))) -> 0.56 | BB10: =VALUE(TRIM(MID(AL8,FIND("=",AL8)+2,99))) -> 0.5 | BC10: 2nd serve points won
B11: 01:00:00 | C11: F | D11: 2 | E11: 1 | F11: 189 | G11: 1 | I11: 00:32:00 | J11: 1 | K11: 7 | L11: 00:02:00 | M11: F | N11: F | O11: 1 | P11: 1 | R11: 01:19:00 | S11: M | U11: 2 | X11: 98 MPH | Y11: Average 2nd serve speed | Z11: 88 MPH | AB11: Average 2nd serve speed | AC11: 98 MPH | AD11: 88 MPH | AE11: 96 MPH | AF11: 87 | AG11: 101 | AH11: 88 | AI11: 100 | AJ11: 87 | AK11: 99 | AL11: 92 | AQ11: Average 2nd serve speed | AR11: =AE11 -> 96 MPH | AS11: =AF11 -> 87 | AU11: =AG11 -> 101 | AV11: =AH11 -> 88 | AX11: =AI11 -> 100 | AY11: =AJ11 -> 87 | BA11: =AK11 -> 99 | BB11: =AL11 -> 92 | BC11: Average 2nd serve speed
B12: 01:25:00 | C12: M | D12: 2 | E12: 6 | F12: 210 | G12: 2 | I12: 00:34:00 | J12: 1 | K12: 8 | L12: 00:14:00 | M12: M | N12: M | O12: 2 | P12: 2 | R12: 01:20:00 | S12: M | U12: 2 | X12: 53 of 68 = 78 % | Y12: Net points won | Z12: 24 of 39 = 62 % | AB12: Net points won | AC12: 53 of 68 = 78 % | AD12: 24 of 39 = 62 % | AE12: 13 of 17 = 76 % | AF12: 6 of 9 = 67 % | AG12: 19 of 25 = 76 % | AH12: 12 of 16 = 75 % | AI12: 9 of 13 = 69 % | AJ12: 2 of 7 = 29 % | AK12: 12 of 13 = 92 % | AL12: 4 of 7 = 57 % | AQ12: Fastest serve | AR12: =AE9 -> 124 MPH | AS12: =AF9 -> 133 | AU12: =AG9 -> 130 | AV12: =AH9 -> 132 | AX12: =AI9 -> 128 | AY12: =AJ9 -> 133 | BA12: =AK9 -> 126 | BB12: =AL9 -> 131 | BC12: Fastest serve
B13: 01:37:00 | C13: F | D13: 2 | E13: 9 | F13: 162 | G13: 1 | I13: 00:48:00 | J13: 1 | K13: 9 | L13: 00:03:00 | M13: F | N13: M | O13: 1 | P13: 2 | R13: 01:33:00 | S13: M | U13: 2 | X13: 4 of 12 = 33 % | Y13: Break points won | Z13: 2 of 7 = 29 % | AB13: Break points won | AC13: 4 of 12 = 33 % | AD13: 2 of 7 = 29 % | AE13: 1 of 3 = 33 % | AF13: 2 of 2 = 100 % | AG13: 1 of 2 = 50 % | AH13: 0 of 4 = 0 % | AI13: 1 of 6 = 17 % | AJ13: 0 of 0 = 0 % | AK13: 1 of 1 = 100 % | AL13: 0 of 1 = 0 %
B14: 01:40:00 | C14: M | D14: 2 | E14: 10 | F14: 207 | G14: 2 | I14: 00:51:00 | J14: 1 | K14: 10 | L14: 00:06:00 | M14: M | N14: M | O14: 2 | P14: 2 | R14: 01:34:00 | S14: M | U14: 2 | X14: 63 of 157 = 40 % | Y14: Receiving points won | Z14: 43 of 131 = 33 % | AB14: Receiving points won | AC14: 63 of 157 = 40 % | AD14: 43 of 131 = 33 % | AE14: 19 of 45 = 42 % | AF14: 16 of 34 = 47 % | AG14: 11 of 36 = 31 % | AH14: 13 of 42 = 31 % | AI14: 19 of 43 = 44 % | AJ14: 5 of 25 = 20 % | AK14: 14 of 34 = 41 % | AL14: 9 of 30 = 30 % | AQ14: Net points won | AR14: =VALUE(TRIM(MID(AE12,FIND("=",AE12)+2,99))) -> 0.76 | AS14: 0.67 | AU14: =VALUE(TRIM(MID(AG12,FIND("=",AG12)+2,99))) -> 0.76 | AV14: 0.75 | AX14: =VALUE(TRIM(MID(AI12,FIND("=",AI12)+2,99))) -> 0.69 | AY14: 0.29 | BA14: =VALUE(TRIM(MID(AK12,FIND("=",AK12)+2,99))) -> 0.92 | BB14: 0.57 | BC14: Net points won
B15: 01:44:00 | C15: F | D15: 2 | E15: 11 | F15: 209 | G15: 1 | I15: 00:57:00 | J15: 1 | K15: BREAK | L15: 00:02:00 | R15: 01:51:00 | S15: F | T15: YES | U15: 1 | V15: 1 | X15: 62 | Y15: Winners | Z15: 46 | AB15: Winners | AC15: 62 | AD15: 46 | AE15: 11 | AF15: 10 | AG15: 19 | AH15: 14 | AI15: 15 | AJ15: 13 | AK15: 17 | AL15: 9 | AQ15: Break points won | AR15: 0.33 | AS15: 1 | AU15: 0.5 | AV15: 0 | AX15: 0.17 | AY15: 0 | BA15: 1 | BB15: 0 | BC15: Break points won
B16: 01:47:00 | C16: M | D16: 2 | E16: 12 | F16: 206 | G16: 2 | I16: 00:59:00 | J16: 2 | K16: 1 | L16: 00:01:00 | M16: F | N16: F | O16: 1 | P16: 1 | R16: 02:22:00 | S16: F | U16: 1 | X16: 38 | Y16: Unforced errors | Z16: 25 | AB16: Unforced errors | AC16: 38 | AD16: 25 | AE16: 16 | AF16: 5 | AG16: 8 | AH16: 4 | AI16: 6 | AJ16: 8 | AK16: 8 | AL16: 8 | AQ16: Receiving points won | AR16: 0.42 | AS16: 0.47 | AU16: 0.31 | AV16: 0.31 | AX16: 0.44 | AY16: 0.2 | BA16: 0.41 | BB16: 0.3 | BC16: Receiving points won
B17: 01:54:00 | C17: F | D17: 3 | E17: 1 | F17: 199 | G17: 1 | I17: 01:00:00 | J17: 2 | K17: 2 | L17: 00:09:00 | M17: M | N17: M | O17: 2 | P17: 2 | R17: 02:23:00 | S17: F | U17: 1 | X17: 151 | Y17: Total points won | Z17: 137 | AB17: Total points won | AC17: 151 | AD17: 137 | AE17: 37 | AF17: 42 | AG17: 40 | AH17: 38 | AI17: 39 | AJ17: 29 | AK17: 35 | AL17: 28
B18: 02:04:00 | C18: M | D18: 3 | E18: 4 | F18: 196 | G18: 2 | I18: 01:09:00 | J18: 2 | K18: 3 | L18: 00:03:00 | M18: F | N18: F | O18: 1 | P18: 1 | R18: 02:24:00 | S18: F | U18: 1 | AQ18: Winners | AR18: =AE15 -> 11 | AS18: =AF15 -> 10 | AU18: =AG15 -> 19 | AV18: 14 | AX18: =AI15 -> 15 | AY18: 13 | BA18: =AK15 -> 17 | BB18: 9 | BC18: Winners
B19: 02:09:00 | C19: F | D19: 3 | E19: 5 | F19: 186 | G19: 1 | I19: 01:12:00 | J19: 2 | K19: 4 | L19: 00:04:00 | M19: M | N19: M | O19: 2 | P19: 2 | R19: 02:30:00 | S19: F | U19: 1 | AQ19: Unforced errors | AR19: =AE16 -> 16 | AS19: 5 | AU19: 8 | AV19: 4 | AX19: 6 | AY19: 8 | BA19: 8 | BB19: 8 | BC19: Unforced errors
B20: 02:13:00 | C20: M | D20: 3 | E20: 6 | F20: 209 | G20: 2 | I20: 01:16:00 | J20: 2 | K20: 5 | L20: 00:05:00 | M20: F | N20: F | O20: 1 | P20: 1 | R20: 02:32:00 | S20: F | U20: 1 | AQ20: Total points won | AR20: 37 | AS20: 42 | AU20: 40 | AV20: 38 | AX20: 39 | AY20: 29 | BA20: 35 | BB20: 28 | BC20: Total points won
B21: 02:49:00 | C21: M | D21: 3 | E21: 8 | F21: 201 | G21: 2 | I21: 01:21:00 | J21: 2 | K21: 6 | L21: 00:04:00 | M21: M | N21: M | O21: 2 | P21: 2 | R21: 02:37:00 | S21: F | T21: YES | U21: 1 | V21: 1
B22: 02:52:00 | C22: F | D22: 3 | E22: 9 | F22: 170 | G22: 1 | I22: 01:25:00 | J22: 2 | K22: 7 | L22: 00:01:00 | M22: F | N22: F | O22: 1 | P22: 1 | R22: 03:07:00 | S22: M | U22: 2
B23: 02:55:00 | C23: F | D23: 3 | E23: 9 | F23: 197 | G23: 1 | I23: 01:26:00 | J23: 2 | K23: 8 | L23: 00:04:00 | M23: M | N23: M | O23: 2 | P23: 2 | R23: 03:24:00 | S23: F | T23: YES | U23: 1 | V23: 1 | AQ23: Average Game Duration | AR23: =AVERAGEIFS($L$5:$L$48,$M$5:$M$48,AR$27,$J$5:$J$48,AR$28) -> 00:03:48 | AS23: =AVERAGEIFS($L$5:$L$48,$M$5:$M$48,AS$27,$J$5:$J$48,AS$28) -> 00:07:36 | AU23: =AVERAGEIFS($L$5:$L$48,$M$5:$M$48,AU$27,$J$5:$J$48,AU$28) -> 00:03:30 | AV23: =AVERAGEIFS($L$5:$L$48,$M$5:$M$48,AV$27,$J$5:$J$48,AV$28) -> 00:05:10 | AX23: =AVERAGEIFS($L$5:$L$48,$M$5:$M$48,AX$27,$J$5:$J$48,AX$28) -> 00:03:48 | AY23: =AVERAGEIFS($L$5:$L$48,$M$5:$M$48,AY$27,$J$5:$J$48,AY$28) -> 00:10:30 | BA23: =AVERAGEIFS($L$5:$L$48,$M$5:$M$48,BA$27,$J$5:$J$48,BA$28) -> 00:06:00 | BB23: =AVERAGEIFS($L$5:$L$48,$M$5:$M$48,BB$27,$J$5:$J$48,BB$28) -> 00:06:24 | BC23: Average Game Duration
B24: 02:59:00 | C24: M | D24: 4 | E24: 1 | F24: 197 | G24: 2 | I24: 01:30:00 | J24: 2 | K24: 9 | L24: 00:07:00 | M24: F | N24: F | O24: 1 | P24: 1 | AQ24: When won | AR24: =AVERAGEIFS($L$5:$L$48,$M$5:$M$48,AR$27,$J$5:$J$48,AR$28,$N$5:$N$48,AR$27) -> 00:04:40 | AS24: =AVERAGEIFS($L$5:$L$48,$M$5:$M$48,AS$27,$J$5:$J$48,AS$28,$N$5:$N$48,AS$27) -> 00:07:30 | AU24: =AVERAGEIFS($L$5:$L$48,$M$5:$M$48,AU$27,$J$5:$J$48,AU$28,$N$5:$N$48,AU$27) -> 00:03:30 | AV24: =AVERAGEIFS($L$5:$L$48,$M$5:$M$48,AV$27,$J$5:$J$48,AV$28,$N$5:$N$48,AV$27) -> 00:05:00 | AX24: =AVERAGEIFS($L$5:$L$48,$M$5:$M$48,AX$27,$J$5:$J$48,AX$28,$N$5:$N$48,AX$27) -> 00:03:48 | AY24: =AVERAGEIFS($L$5:$L$48,$M$5:$M$48,AY$27,$J$5:$J$48,AY$28,$N$5:$N$48,AY$27) -> 00:05:20 | BA24: =AVERAGEIFS($L$5:$L$48,$M$5:$M$48,BA$27,$J$5:$J$48,BA$28,$N$5:$N$48,BA$27) -> 00:06:00 | BB24: =AVERAGEIFS($L$5:$L$48,$M$5:$M$48,BB$27,$J$5:$J$48,BB$28,$N$5:$N$48,BB$27) -> 00:06:45 | BC24: When won
B25: 03:11:00 | C25: M | D25: 4 | E25: 3 | F25: 146 | G25: 2 | I25: 01:37:00 | J25: 2 | K25: 10 | L25: 00:04:00 | M25: M | N25: M | O25: 2 | P25: 2
B26: 03:13:00 | C26: M | D26: 4 | E26: 3 | F26: 193 | G26: 2 | I26: 01:41:00 | J26: 2 | K26: 11 | L26: 00:04:00 | M26: F | N26: F | O26: 1 | P26: 1
B27: 03:18:00 | C27: F | D27: 4 | E27: 4 | F27: 202 | G27: 1 | I27: 01:45:00 | J27: 2 | K27: 12 | L27: 00:06:00 | M27: M | N27: F | O27: 2 | P27: 1 | AR27: F | AS27: M | AU27: F | AV27: M | AX27: F | AY27: M | BA27: F | BB27: M
B28: 03:32:00 | C28: M | D28: 4 | E28: 7 | F28: 198 | G28: 2 | I28: 01:51:00 | J28: 2 | K28: BREAK | L28: 00:03:00 | R28: Trivia | S28: Value | T28: Set | U28: Game | V28: Player | W28: Server | AR28: 1 | AS28: 1 | AU28: 2 | AV28: 2 | AX28: 3 | AY28: 3 | BA28: 4 | BB28: 4
B29: 03:36:00 | C29: M | D29: 4 | E29: 7 | F29: 135 | G29: 2 | I29: 01:54:00 | J29: 3 | K29: 1 | L29: 00:01:00 | M29: F | N29: F | O29: 1 | P29: 1 | R29: Longest game | S29: =MAX($L$5:$L$48) -> 00:26:00 | T29: =INDEX($J$5:$J$48,MATCH(S29,$L$5:$L$48,0)) -> 3 | U29: =INDEX($K$5:$K$48,MATCH(S29,$L$5:$L$48,0)) -> 6 | V29: =INDEX($N$5:$N$48,MATCH(S29,$L$5:$L$48,0)) -> F | W29: =INDEX($M$5:$M$48,MATCH(S29,$L$5:$L$48,0)) -> M | Y29: =IF(V29="F","Federer","Murray") -> Federer | Z29: =IF(W29="F","Federer","Murray") -> Murray
B30: 03:39:00 | C30: F | D30: 4 | E30: 8 | F30: 178 | G30: 1 | I30: 01:55:00 | J30: 3 | K30: 2 | L30: 00:05:00 | M30: M | N30: M | O30: 2 | P30: 2 | R30: Fastest Game | S30: =MIN($L$5:$L$48) -> 00:01:00 | T30: =INDEX($J$5:$J$48,MATCH(S30,$L$5:$L$48,0)) -> 2 | U30: =INDEX($K$5:$K$48,MATCH(S30,$L$5:$L$48,0)) -> 1 | V30: =INDEX($N$5:$N$48,MATCH(S30,$L$5:$L$48,0)) -> F | W30: =INDEX($M$5:$M$48,MATCH(S30,$L$5:$L$48,0)) -> F | Y30: =IF(V30="F","Federer","Murray") -> Federer | Z30: =IF(W30="F","Federer","Murray") -> Federer | AQ30: =MAX(AR23:BB24) -> 00:10:30
B31: 03:51:00 | C31: M | D31: 4 | E31: 9 | F31: 210 | G31: 2 | I31: 02:00:00 | J31: 3 | K31: 3 | L31: 00:02:00 | M31: F | N31: F | O31: 1 | P31: 1 | R31: Fastest Serve | S31: =AD9 -> 133 MPH | T31: =AC9 -> 130 MPH | Y31: Murray | Z31: Murray
B32: 03:56:00 | C32: F | D32: 4 | E32: 10 | F32: 186 | G32: 1 | I32: 02:02:00 | J32: 3 | K32: 4 | L32: 00:05:00 | M32: M | N32: M | O32: 2 | P32: 2 | Q32: =MAX($F$5:$F$32) -> 212 | R32: Fastest Ace | S32: =CONVERT(MAX($F$5:$F$32)*1000,"m","mi") -> 131.7306928 | T32: =INDEX($D$5:$D$32,MATCH(Q32,$F$5:$F$32,0)) -> 1 | U32: =INDEX($E$5:$E$32,MATCH(Q32,$F$5:$F$32,0)) -> 10 | W32: =INDEX($C$5:$C$32,MATCH(Q32,$F$5:$F$32,0)) -> M | X32: =INDEX($B$5:$B$32,MATCH(Q32,$F$5:$F$32,0)) -> 0.03888888889 | Y32: Murray | Z32: Murray
I33: 02:07:00 | J33: 3 | K33: 5 | L33: 00:04:00 | M33: F | N33: F | O33: 1 | P33: 1 | Q33: =MIN($F$5:$F$32) -> 135 | R33: Slowest Ace | S33: =CONVERT(MIN($F$5:$F$32)*1000,"m","mi") -> 83.88511095 | T33: =INDEX($D$5:$D$32,MATCH(Q33,$F$5:$F$32,0)) -> 4 | U33: =INDEX($E$5:$E$32,MATCH(Q33,$F$5:$F$32,0)) -> 7 | W33: =INDEX($C$5:$C$32,MATCH(Q33,$F$5:$F$32,0)) -> M | X33: =INDEX($B$5:$B$32,MATCH(Q33,$F$5:$F$32,0)) -> 0.15 | Y33: Murray | Z33: Murray
I34: 02:11:00 | J34: 3 | K34: 6 | L34: 00:26:00 | M34: M | N34: F | O34: 2 | P34: 1
B35: Aces | I35: 02:37:00 | J35: 3 | K35: 7 | L35: 00:06:00 | M35: F | N35: F | O35: 1 | P35: 1 | R35: Trivia sentences
B36: Break Points | I36: 02:43:00 | J36: 3 | K36: 8 | L36: 00:06:00 | M36: M | N36: M | O36: 2 | P36: 2
B37: Break Points Won | I37: 02:49:00 | J37: 3 | K37: 9 | L37: 00:06:00 | M37: F | N37: F | O37: 1 | P37: 1 | R37: ="Longest game is "&TEXT(S29,"[h]:mm")&" mins. in set "&T29&" game "&U29&". It was won by "&Y29&" (served by "&Z29&")" -> Longest game is 0:26 mins. in set 3 game 6. It was won by Federer (served by Murray)
B38: Game Winners | I38: 02:55:00 | J38: 3 | K38: BREAK | L38: 00:01:00 | R38: ="Fastest game is "&TEXT(S30,"[h]:mm")&" mins. in set "&T30&" game "&U30&". It was won by "&Y30&" (served by "&Z30&")" -> Fastest game is 0:01 mins. in set 2 game 1. It was won by Federer (served by Federer)
B39: Games | I39: 02:56:00 | J39: 4 | K39: 1 | L39: 00:05:00 | M39: M | N39: M | O39: 2 | P39: 2 | R39: ="Fastest serve is "&S31&" by "&Y31&". Federer's fastest serve is "&T31&"." -> Fastest serve is 133 MPH by Murray. Federer's fastest serve is 130 MPH.
B40: Nothing | I40: 03:01:00 | J40: 4 | K40: 2 | L40: 00:08:00 | M40: F | N40: F | O40: 1 | P40: 1 | R40: ="Fastest ace is by "&Y32&" in game "&U32&" set "&T32&" at "&TEXT(S32,"0 ""MPH.""") -> Fastest ace is by Murray in game 10 set 1 at 132 MPH.
I41: 03:09:00 | J41: 4 | K41: 3 | L41: 00:06:00 | M41: M | N41: M | O41: 2 | P41: 2 | R41: ="Slowest ace is by "&Y33&" in game "&U33&" set "&T33&" at "&TEXT(S33,"0 ""MPH.""") -> Slowest ace is by Murray in game 7 set 4 at 84 MPH.
B42: =INDEX(lstOptions,C42) -> Aces | C42: 1 | I42: 03:15:00 | J42: 4 | K42: 4 | L42: 00:04:00 | M42: F | N42: F | O42: 1 | P42: 1
B43: ="Federer: "&COUNTIF(lstChosen,1) -> Federer: 12 | I43: 03:19:00 | J43: 4 | K43: 5 | L43: 00:05:00 | M43: M | N43: F | O43: 2 | P43: 1
B44: ="Murray: "&COUNTIF(lstChosen,2) -> Murray: 16 | I44: 03:24:00 | J44: 4 | K44: 6 | L44: 00:06:00 | M44: F | N44: F | O44: 1 | P44: 1
I45: 03:30:00 | J45: 4 | K45: 7 | L45: 00:06:00 | M45: M | N45: M | O45: 2 | P45: 2
I46: 03:36:00 | J46: 4 | K46: 8 | L46: 00:06:00 | M46: F | N46: F | O46: 1 | P46: 1
I47: 03:42:00 | J47: 4 | K47: 9 | L47: 00:10:00 | M47: M | N47: M | O47: 2 | P47: 2
I48: 03:52:00 | J48: 4 | K48: 10 | L48: 00:06:00 | M48: F | N48: F | O48: 1 | P48: 1
I49: 03:58:00 | J49: 4 | O49: 2 | P49: 2
B51: KEY Points on timeline
A52: Dummy | B52: Time | C52: Set Start | D52: Game Start | E52: Server | F52: Ace | G52: Break Point | H52: Break Point Won? | I52: Game Winners | J52: Game Servers
B53: 00:00:00 | C53: =VLOOKUP(B53,$I$5:$N$49,2) -> 1 | D53: =VLOOKUP(B53,$I$5:$N$49,3) -> 1 | E53: =VLOOKUP(B53,$I$5:$N$49,5) -> F | F53: =SUMIFS($G$5:$G$32,$B$5:$B$32,B53) -> 0 | G53: =SUMIFS($U$5:$U$23,$R$5:$R$23,B53) -> 0 | H53: =SUMIFS($V$5:$V$23,$R$5:$R$23,B53) -> 0 | I53: =SUMIFS($P$5:$P$48,$I$5:$I$48,$B53) -> 2 | J53: =SUMIFS($O$5:$O$48,$I$5:$I$48,$B53) -> 1
B54: 00:01:00 | C54: =VLOOKUP(B54,$I$5:$N$49,2) -> 1 | D54: =VLOOKUP(B54,$I$5:$N$49,3) -> 1 | E54: =VLOOKUP(B54,$I$5:$N$49,5) -> F | F54: =SUMIFS($G$5:$G$32,$B$5:$B$32,B54) -> 0 | G54: =SUMIFS($U$5:$U$23,$R$5:$R$23,B54) -> 0 | H54: =SUMIFS($V$5:$V$23,$R$5:$R$23,B54) -> 0 | I54: =SUMIFS($P$5:$P$48,$I$5:$I$48,$B54) -> 0 | J54: =SUMIFS($O$5:$O$48,$I$5:$I$48,$B54) -> 0
B55: 00:02:00 | C55: 1 | D55: 2 | E55: M | F55: 0 | G55: 2 | H55: 2 | I55: 2 | J55: 2
B56: 00:03:00 | C56: 1 | D56: 2 | E56: M | F56: 0 | G56: 0 | H56: 0 | I56: 0 | J56: 0
B57: 00:04:00 | C57: 1 | D57: 2 | E57: M | F57: 0 | G57: 0 | H57: 0 | I57: 0 | J57: 0
B58: 00:05:00 | C58: 1 | D58: 2 | E58: M | F58: 0 | G58: 0 | H58: 0 | I58: 0 | J58: 0
B59: 00:06:00 | C59: 1 | D59: 3 | E59: F | F59: 0 | G59: 0 | H59: 0 | I59: 1 | J59: 1
B60: 00:07:00 | C60: 1 | D60: 3 | E60: F | F60: 0 | G60: 0 | H60: 0 | I60: 0 | J60: 0
B61: 00:08:00 | C61: 1 | D61: 3 | E61: F | F61: 1 | G61: 0 | H61: 0 | I61: 0 | J61: 0
B62: 00:09:00 | C62: 1 | D62: 3 | E62: F | F62: 0 | G62: 0 | H62: 0 | I62: 0 | J62: 0
B63: 00:10:00 | C63: 1 | D63: 3 | E63: F | F63: 0 | G63: 0 | H63: 0 | I63: 0 | J63: 0
B64: 00:11:00 | C64: 1 | D64: 4 | E64: M | F64: 0 | G64: 0 | H64: 0 | I64: 1 | J64: 2
B65: 00:12:00 | C65: 1 | D65: 4 | E65: M | F65: 0 | G65: 0 | H65: 0 | I65: 0 | J65: 0
B66: 00:13:00 | C66: 1 | D66: 4 | E66: M | F66: 0 | G66: 0 | H66: 0 | I66: 0 | J66: 0
B67: 00:14:00 | C67: 1 | D67: 4 | E67: M | F67: 2 | G67: 0 | H67: 0 | I67: 0 | J67: 0
B68: 00:15:00 | C68: 1 | D68: 4 | E68: M | F68: 0 | G68: 0 | H68: 0 | I68: 0 | J68: 0
B69: 00:16:00 | C69: 1 | D69: 4 | E69: M | F69: 0 | G69: 0 | H69: 0 | I69: 0 | J69: 0
B70: 00:17:00 | C70: 1 | D70: 4 | E70: M | F70: 2 | G70: 0 | H70: 0 | I70: 0 | J70: 0
B71: 00:18:00 | C71: 1 | D71: 4 | E71: M | F71: 0 | G71: 0 | H71: 0 | I71: 0 | J71: 0
B72: 00:19:00 | C72: 1 | D72: 4 | E72: M | F72: 0 | G72: 1 | H72: 1 | I72: 1 | J72: 1
B73: 00:20:00 | C73: 1 | D73: 5 | E73: F | F73: 0 | G73: 0 | H73: 0 | I73: 0 | J73: 0
B74: 00:21:00 | C74: 1 | D74: 5 | E74: F | F74: 0 | G74: 0 | H74: 0 | I74: 0 | J74: 0
B75: 00:22:00 | C75: 1 | D75: 5 | E75: F | F75: 0 | G75: 0 | H75: 0 | I75: 0 | J75: 0
B76: 00:23:00 | C76: 1 | D76: 5 | E76: F | F76: 0 | G76: 0 | H76: 0 | I76: 0 | J76: 0
B77: 00:24:00 | C77: 1 | D77: 5 | E77: F | F77: 0 | G77: 0 | H77: 0 | I77: 0 | J77: 0
B78: 00:25:00 | C78: 1 | D78: 5 | E78: F | F78: 0 | G78: 0 | H78: 0 | I78: 0 | J78: 0
B79: 00:26:00 | C79: 1 | D79: 6 | E79: M | F79: 0 | G79: 0 | H79: 0 | I79: 2 | J79: 2
B80: 00:27:00 | C80: 1 | D80: 6 | E80: M | F80: 2 | G80: 0 | H80: 0 | I80: 0 | J80: 0
B81: 00:28:00 | C81: 1 | D81: 6 | E81: M | F81: 0 | G81: 0 | H81: 0 | I81: 0 | J81: 0
B82: 00:29:00 | C82: 1 | D82: 6 | E82: M | F82: 0 | G82: 0 | H82: 0 | I82: 0 | J82: 0
B83: 00:30:00 | C83: 1 | D83: 6 | E83: M | F83: 0 | G83: 0 | H83: 0 | I83: 0 | J83: 0
B84: 00:31:00 | C84: 1 | D84: 6 | E84: M | F84: 0 | G84: 0 | H84: 0 | I84: 0 | J84: 0
B85: 00:32:00 | C85: 1 | D85: 6 | E85: M | F85: 0 | G85: 0 | H85: 0 | I85: 1 | J85: 1
B86: 00:33:00 | C86: 1 | D86: 7 | E86: F | F86: 1 | G86: 0 | H86: 0 | I86: 0 | J86: 0
B87: 00:34:00 | C87: 1 | D87: 7 | E87: F | F87: 0 | G87: 0 | H87: 0 | I87: 2 | J87: 2
B88: 00:35:00 | C88: 1 | D88: 8 | E88: M | F88: 0 | G88: 0 | H88: 0 | I88: 0 | J88: 0
B89: 00:36:00 | C89: 1 | D89: 8 | E89: M | F89: 0 | G89: 0 | H89: 0 | I89: 0 | J89: 0
B90: 00:37:00 | C90: 1 | D90: 8 | E90: M | F90: 0 | G90: 0 | H90: 0 | I90: 0 | J90: 0
B91: 00:38:00 | C91: 1 | D91: 8 | E91: M | F91: 0 | G91: 0 | H91: 0 | I91: 0 | J91: 0
B92: 00:39:00 | C92: 1 | D92: 8 | E92: M | F92: 0 | G92: 0 | H92: 0 | I92: 0 | J92: 0
B93: 00:40:00 | C93: 1 | D93: 8 | E93: M | F93: 0 | G93: 0 | H93: 0 | I93: 0 | J93: 0
B94: 00:41:00 | C94: 1 | D94: 8 | E94: M | F94: 0 | G94: 0 | H94: 0 | I94: 0 | J94: 0
B95: 00:42:00 | C95: 1 | D95: 8 | E95: M | F95: 0 | G95: 0 | H95: 0 | I95: 0 | J95: 0
B96: 00:43:00 | C96: 1 | D96: 8 | E96: M | F96: 0 | G96: 1 | H96: 0 | I96: 0 | J96: 0
B97: 00:44:00 | C97: 1 | D97: 8 | E97: M | F97: 0 | G97: 1 | H97: 0 | I97: 0 | J97: 0
B98: 00:45:00 | C98: 1 | D98: 8 | E98: M | F98: 0 | G98: 0 | H98: 0 | I98: 0 | J98: 0
B99: 00:46:00 | C99: 1 | D99: 8 | E99: M | F99: 0 | G99: 0 | H99: 0 | I99: 0 | J99: 0
B100: 00:47:00 | C100: 1 | D100: 8 | E100: M | F100: 0 | G100: 0 | H100: 0 | I100: 0 | J100: 0
B101: 00:48:00 | C101: 1 | D101: 8 | E101: M | F101: 0 | G101: 0 | H101: 0 | I101: 2 | J101: 1
B102: 00:49:00 | C102: 1 | D102: 9 | E102: F | F102: 0 | G102: 0 | H102: 0 | I102: 0 | J102: 0
B103: 00:50:00 | C103: 1 | D103: 9 | E103: F | F103: 0 | G103: 0 | H103: 0 | I103: 0 | J103: 0
B104: 00:51:00 | C104: 1 | D104: 10 | E104: M | F104: 0 | G104: 2 | H104: 2 | I104: 2 | J104: 2
B105: 00:52:00 | C105: 1 | D105: 10 | E105: M | F105: 0 | G105: 0 | H105: 0 | I105: 0 | J105: 0
B106: 00:53:00 | C106: 1 | D106: 10 | E106: M | F106: 0 | G106: 0 | H106: 0 | I106: 0 | J106: 0
B107: 00:54:00 | C107: 1 | D107: 10 | E107: M | F107: 0 | G107: 0 | H107: 0 | I107: 0 | J107: 0
B108: 00:55:00 | C108: 1 | D108: 10 | E108: M | F108: 0 | G108: 0 | H108: 0 | I108: 0 | J108: 0
B109: 00:56:00 | C109: 1 | D109: 10 | E109: M | F109: 2 | G109: 0 | H109: 0 | I109: 0 | J109: 0
B110: 00:57:00 | C110: 1 | D110: 10 | E110: M | F110: 0 | G110: 0 | H110: 0 | I110: 0 | J110: 0
B111: 00:58:00 | C111: 1 | D111: BREAK | E111: 0 | F111: 0 | G111: 0 | H111: 0 | I111: 0 | J111: 0
B112: 00:59:00 | C112: 1 | D112: BREAK | E112: 0 | F112: 0 | G112: 0 | H112: 0 | I112: 1 | J112: 1
B113: 01:00:00 | C113: 2 | D113: 2 | E113: M | F113: 1 | G113: 0 | H113: 0 | I113: 2 | J113: 2
B114: 01:01:00 | C114: 2 | D114: 2 | E114: M | F114: 0 | G114: 0 | H114: 0 | I114: 0 | J114: 0
B115: 01:02:00 | C115: 2 | D115: 2 | E115: M | F115: 0 | G115: 0 | H115: 0 | I115: 0 | J115: 0
B116: 01:03:00 | C116: 2 | D116: 2 | E116: M | F116: 0 | G116: 0 | H116: 0 | I116: 0 | J116: 0
B117: 01:04:00 | C117: 2 | D117: 2 | E117: M | F117: 0 | G117: 0 | H117: 0 | I117: 0 | J117: 0
B118: 01:05:00 | C118: =VLOOKUP(B118,$I$5:$N$49,2) -> 2 | D118: =VLOOKUP(B118,$I$5:$N$49,3) -> 2 | E118: =VLOOKUP(B118,$I$5:$N$49,5) -> M | F118: =SUMIFS($G$5:$G$32,$B$5:$B$32,B118) -> 0 | G118: =SUMIFS($U$5:$U$23,$R$5:$R$23,B118) -> 1 | H118: =SUMIFS($V$5:$V$23,$R$5:$R$23,B118) -> 0 | I118: =SUMIFS($P$5:$P$48,$I$5:$I$48,$B118) -> 0 | J118: =SUMIFS($O$5:$O$48,$I$5:$I$48,$B118) -> 0
B119: 01:06:00 | C119: 2 | D119: 2 | E119: M | F119: 0 | G119: 0 | H119: 0 | I119: 0 | J119: 0
B120: 01:07:00 | C120: 2 | D120: 2 | E120: M | F120: 0 | G120: 0 | H120: 0 | I120: 0 | J120: 0
B121: 01:08:00 | C121: 2 | D121: 2 | E121: M | F121: 0 | G121: 0 | H121: 0 | I121: 0 | J121: 0
B122: 01:09:00 | C122: 2 | D122: 3 | E122: F | F122: 0 | G122: 0 | H122: 0 | I122: 1 | J122: 1
B123: 01:10:00 | C123: 2 | D123: 3 | E123: F | F123: 0 | G123: 0 | H123: 0 | I123: 0 | J123: 0
B124: 01:11:00 | C124: 2 | D124: 3 | E124: F | F124: 0 | G124: 0 | H124: 0 | I124: 0 | J124: 0
B125: 01:12:00 | C125: 2 | D125: 4 | E125: M | F125: 0 | G125: 0 | H125: 0 | I125: 2 | J125: 2
B126: 01:13:00 | C126: 2 | D126: 4 | E126: M | F126: 0 | G126: 0 | H126: 0 | I126: 0 | J126: 0
B127: 01:14:00 | C127: 2 | D127: 4 | E127: M | F127: 0 | G127: 0 | H127: 0 | I127: 0 | J127: 0
B128: 01:15:00 | C128: 2 | D128: 4 | E128: M | F128: 0 | G128: 0 | H128: 0 | I128: 0 | J128: 0
B129: 01:16:00 | C129: 2 | D129: 5 | E129: F | F129: 0 | G129: 0 | H129: 0 | I129: 1 | J129: 1
B130: 01:17:00 | C130: 2 | D130: 5 | E130: F | F130: 0 | G130: 0 | H130: 0 | I130: 0 | J130: 0
B131: 01:18:00 | C131: 2 | D131: 5 | E131: F | F131: 0 | G131: 0 | H131: 0 | I131: 0 | J131: 0
B132: 01:19:00 | C132: 2 | D132: 5 | E132: F | F132: 0 | G132: 2 | H132: 0 | I132: 0 | J132: 0
B133: 01:20:00 | C133: 2 | D133: 5 | E133: F | F133: 0 | G133: 2 | H133: 0 | I133: 0 | J133: 0
B134: 01:21:00 | C134: 2 | D134: 6 | E134: M | F134: 0 | G134: 0 | H134: 0 | I134: 2 | J134: 2
B135: 01:22:00 | C135: 2 | D135: 6 | E135: M | F135: 0 | G135: 0 | H135: 0 | I135: 0 | J135: 0
B136: 01:23:00 | C136: 2 | D136: 6 | E136: M | F136: 0 | G136: 0 | H136: 0 | I136: 0 | J136: 0
B137: 01:24:00 | C137: 2 | D137: 6 | E137: M | F137: 0 | G137: 0 | H137: 0 | I137: 0 | J137: 0
B138: 01:25:00 | C138: 2 | D138: 7 | E138: F | F138: 2 | G138: 0 | H138: 0 | I138: 1 | J138: 1
B139: 01:26:00 | C139: 2 | D139: 7 | E139: F | F139: 0 | G139: 0 | H139: 0 | I139: 2 | J139: 2
B140: 01:27:00 | C140: 2 | D140: 8 | E140: M | F140: 0 | G140: 0 | H140: 0 | I140: 0 | J140: 0
B141: 01:28:00 | C141: 2 | D141: 8 | E141: M | F141: 0 | G141: 0 | H141: 0 | I141: 0 | J141: 0
B142: 01:29:00 | C142: 2 | D142: 8 | E142: M | F142: 0 | G142: 0 | H142: 0 | I142: 0 | J142: 0
B143: 01:30:00 | C143: 2 | D143: 9 | E143: F | F143: 0 | G143: 0 | H143: 0 | I143: 1 | J143: 1
B144: 01:31:00 | C144: 2 | D144: 9 | E144: F | F144: 0 | G144: 0 | H144: 0 | I144: 0 | J144: 0
B145: 01:32:00 | C145: 2 | D145: 9 | E145: F | F145: 0 | G145: 0 | H145: 0 | I145: 0 | J145: 0
B146: 01:33:00 | C146: 2 | D146: 9 | E146: F | F146: 0 | G146: 2 | H146: 0 | I146: 0 | J146: 0
B147: 01:34:00 | C147: 2 | D147: 9 | E147: F | F147: 0 | G147: 2 | H147: 0 | I147: 0 | J147: 0
B148: 01:35:00 | C148: 2 | D148: 9 | E148: F | F148: 0 | G148: 0 | H148: 0 | I148: 0 | J148: 0
B149: 01:36:00 | C149: 2 | D149: 9 | E149: F | F149: 0 | G149: 0 | H149: 0 | I149: 0 | J149: 0
B150: 01:37:00 | C150: 2 | D150: 9 | E150: F | F150: 1 | G150: 0 | H150: 0 | I150: 2 | J150: 2
B151: 01:38:00 | C151: 2 | D151: 10 | E151: M | F151: 0 | G151: 0 | H151: 0 | I151: 0 | J151: 0
B152: 01:39:00 | C152: 2 | D152: 10 | E152: M | F152: 0 | G152: 0 | H152: 0 | I152: 0 | J152: 0
B153: 01:40:00 | C153: 2 | D153: 10 | E153: M | F153: 2 | G153: 0 | H153: 0 | I153: 0 | J153: 0
B154: 01:41:00 | C154: 2 | D154: 11 | E154: F | F154: 0 | G154: 0 | H154: 0 | I154: 1 | J154: 1
B155: 01:42:00 | C155: 2 | D155: 11 | E155: F | F155: 0 | G155: 0 | H155: 0 | I155: 0 | J155: 0
B156: 01:43:00 | C156: 2 | D156: 11 | E156: F | F156: 0 | G156: 0 | H156: 0 | I156: 0 | J156: 0
B157: 01:44:00 | C157: 2 | D157: 11 | E157: F | F157: 1 | G157: 0 | H157: 0 | I157: 0 | J157: 0
B158: 01:45:00 | C158: 2 | D158: 12 | E158: M | F158: 0 | G158: 0 | H158: 0 | I158: 1 | J158: 2
B159: 01:46:00 | C159: 2 | D159: 12 | E159: M | F159: 0 | G159: 0 | H159: 0 | I159: 0 | J159: 0
B160: 01:47:00 | C160: 2 | D160: 12 | E160: M | F160: 2 | G160: 0 | H160: 0 | I160: 0 | J160: 0
B161: 01:48:00 | C161: 2 | D161: 12 | E161: M | F161: 0 | G161: 0 | H161: 0 | I161: 0 | J161: 0
B162: 01:49:00 | C162: 2 | D162: 12 | E162: M | F162: 0 | G162: 0 | H162: 0 | I162: 0 | J162: 0
B163: 01:50:00 | C163: 2 | D163: 12 | E163: M | F163: 0 | G163: 0 | H163: 0 | I163: 0 | J163: 0
B164: 01:51:00 | C164: 2 | D164: 12 | E164: M | F164: 0 | G164: 1 | H164: 1 | I164: 0 | J164: 0
B165: 01:52:00 | C165: 2 | D165: BREAK | E165: 0 | F165: 0 | G165: 0 | H165: 0 | I165: 0 | J165: 0
B166: 01:53:00 | C166: 2 | D166: BREAK | E166: 0 | F166: 0 | G166: 0 | H166: 0 | I166: 0 | J166: 0
B167: 01:54:00 | C167: 3 | D167: 1 | E167: F | F167: 1 | G167: 0 | H167: 0 | I167: 1 | J167: 1
B168: 01:55:00 | C168: 3 | D168: 2 | E168: M | F168: 0 | G168: 0 | H168: 0 | I168: 2 | J168: 2
B169: 01:56:00 | C169: 3 | D169: 2 | E169: M | F169: 0 | G169: 0 | H169: 0 | I169: 0 | J169: 0
B170: 01:57:00 | C170: 3 | D170: 2 | E170: M | F170: 0 | G170: 0 | H170: 0 | I170: 0 | J170: 0
B171: 01:58:00 | C171: 3 | D171: 2 | E171: M | F171: 0 | G171: 0 | H171: 0 | I171: 0 | J171: 0
B172: 01:59:00 | C172: 3 | D172: 2 | E172: M | F172: 0 | G172: 0 | H172: 0 | I172: 0 | J172: 0
B173: 02:00:00 | C173: 3 | D173: 2 | E173: M | F173: 0 | G173: 0 | H173: 0 | I173: 1 | J173: 1
B174: 02:01:00 | C174: 3 | D174: 3 | E174: F | F174: 0 | G174: 0 | H174: 0 | I174: 0 | J174: 0
B175: 02:02:00 | C175: 3 | D175: 3 | E175: F | F175: 0 | G175: 0 | H175: 0 | I175: 2 | J175: 2
B176: 02:03:00 | C176: 3 | D176: 4 | E176: M | F176: 0 | G176: 0 | H176: 0 | I176: 0 | J176: 0
B177: 02:04:00 | C177: 3 | D177: 4 | E177: M | F177: 2 | G177: 0 | H177: 0 | I177: 0 | J177: 0
B178: 02:05:00 | C178: 3 | D178: 4 | E178: M | F178: 0 | G178: 0 | H178: 0 | I178: 0 | J178: 0
B179: 02:06:00 | C179: 3 | D179: 4 | E179: M | F179: 0 | G179: 0 | H179: 0 | I179: 0 | J179: 0
B180: 02:07:00 | C180: 3 | D180: 5 | E180: F | F180: 0 | G180: 0 | H180: 0 | I180: 1 | J180: 1
B181: 02:08:00 | C181: 3 | D181: 5 | E181: F | F181: 0 | G181: 0 | H181: 0 | I181: 0 | J181: 0
B182: 02:09:00 | C182: =VLOOKUP(B182,$I$5:$N$49,2) -> 3 | D182: =VLOOKUP(B182,$I$5:$N$49,3) -> 5 | E182: =VLOOKUP(B182,$I$5:$N$49,5) -> F | F182: =SUMIFS($G$5:$G$32,$B$5:$B$32,B182) -> 1 | G182: =SUMIFS($U$5:$U$23,$R$5:$R$23,B182) -> 0 | H182: =SUMIFS($V$5:$V$23,$R$5:$R$23,B182) -> 0 | I182: =SUMIFS($P$5:$P$48,$I$5:$I$48,$B182) -> 0 | J182: =SUMIFS($O$5:$O$48,$I$5:$I$48,$B182) -> 0
B183: 02:10:00 | C183: 3 | D183: 5 | E183: F | F183: 0 | G183: 0 | H183: 0 | I183: 0 | J183: 0
B184: 02:11:00 | C184: 3 | D184: 5 | E184: F | F184: 0 | G184: 0 | H184: 0 | I184: 1 | J184: 2
B185: 02:12:00 | C185: 3 | D185: 6 | E185: M | F185: 0 | G185: 0 | H185: 0 | I185: 0 | J185: 0
B186: 02:13:00 | C186: 3 | D186: 6 | E186: M | F186: 2 | G186: 0 | H186: 0 | I186: 0 | J186: 0
B187: 02:14:00 | C187: 3 | D187: 6 | E187: M | F187: 0 | G187: 0 | H187: 0 | I187: 0 | J187: 0
B188: 02:15:00 | C188: 3 | D188: 6 | E188: M | F188: 0 | G188: 0 | H188: 0 | I188: 0 | J188: 0
B189: 02:16:00 | C189: 3 | D189: 6 | E189: M | F189: 0 | G189: 0 | H189: 0 | I189: 0 | J189: 0
B190: 02:17:00 | C190: 3 | D190: 6 | E190: M | F190: 0 | G190: 0 | H190: 0 | I190: 0 | J190: 0
B191: 02:18:00 | C191: 3 | D191: 6 | E191: M | F191: 0 | G191: 0 | H191: 0 | I191: 0 | J191: 0
B192: 02:19:00 | C192: 3 | D192: 6 | E192: M | F192: 0 | G192: 0 | H192: 0 | I192: 0 | J192: 0
B193: 02:20:00 | C193: 3 | D193: 6 | E193: M | F193: 0 | G193: 0 | H193: 0 | I193: 0 | J193: 0
B194: 02:21:00 | C194: 3 | D194: 6 | E194: M | F194: 0 | G194: 0 | H194: 0 | I194: 0 | J194: 0
B195: 02:22:00 | C195: 3 | D195: 6 | E195: M | F195: 0 | G195: 1 | H195: 0 | I195: 0 | J195: 0
B196: 02:23:00 | C196: 3 | D196: 6 | E196: M | F196: 0 | G196: 0 | H196: 0 | I196: 0 | J196: 0
B197: 02:24:00 | C197: 3 | D197: 6 | E197: M | F197: 0 | G197: 1 | H197: 0 | I197: 0 | J197: 0
B198: 02:25:00 | C198: 3 | D198: 6 | E198: M | F198: 0 | G198: 0 | H198: 0 | I198: 0 | J198: 0
B199: 02:26:00 | C199: 3 | D199: 6 | E199: M | F199: 0 | G199: 0 | H199: 0 | I199: 0 | J199: 0
B200: 02:27:00 | C200: 3 | D200: 6 | E200: M | F200: 0 | G200: 0 | H200: 0 | I200: 0 | J200: 0
B201: 02:28:00 | C201: 3 | D201: 6 | E201: M | F201: 0 | G201: 0 | H201: 0 | I201: 0 | J201: 0
B202: 02:29:00 | C202: 3 | D202: 6 | E202: M | F202: 0 | G202: 0 | H202: 0 | I202: 0 | J202: 0
... 89 more rows

Sheet Timeline
D3: 00:00:00 | E3: 00:01:00 | F3: 00:02:00 | G3: 00:03:00 | H3: 00:04:00 | I3: 00:05:00 | J3: 00:06:00 | K3: 00:07:00 | L3: 00:08:00 | M3: 00:09:00 | N3: 00:10:00 | O3: 00:11:00 | P3: 00:12:00 | Q3: 00:13:00 | R3: 00:14:00 | S3: 00:15:00 | T3: 00:16:00 | U3: 00:17:00 | V3: 00:18:00 | W3: 00:19:00 | X3: 00:20:00 | Y3: 00:21:00 | Z3: 00:22:00 | AA3: 00:23:00 | AB3: 00:24:00 | AC3: 00:25:00 | AD3: 00:26:00 | AE3: 00:27:00 | AF3: 00:28:00 | AG3: 00:29:00 | AH3: 00:30:00 | AI3: 00:31:00 | AJ3: 00:32:00 | AK3: 00:33:00 | AL3: 00:34:00 | AM3: 00:35:00 | AN3: 00:36:00 | AO3: 00:37:00 | AP3: 00:38:00 | AQ3: 00:39:00 | AR3: 00:40:00 | AS3: 00:41:00 | AT3: 00:42:00 | AU3: 00:43:00 | AV3: 00:44:00 | AW3: 00:45:00 | AX3: 00:46:00 | AY3: 00:47:00 | AZ3: 00:48:00 | BA3: 00:49:00 | BB3: 00:50:00 | BC3: 00:51:00 | BD3: 00:52:00 | BE3: 00:53:00 | BF3: 00:54:00 | BG3: 00:55:00 | BH3: 00:56:00 | BI3: 00:57:00 | BJ3: 00:58:00 | BK3: 00:59:00 | BL3: 01:00:00 | BM3: 01:01:00 | BN3: 01:02:00 | BO3: 01:03:00 | BP3: 01:04:00 | BQ3: 01:05:00 | BR3: 01:06:00 | BS3: 01:07:00 | BT3: 01:08:00 | BU3: 01:09:00 | BV3: 01:10:00 | BW3: 01:11:00 | BX3: 01:12:00 | BY3: 01:13:00 | BZ3: 01:14:00 | CA3: 01:15:00 | CB3: 01:16:00 | CC3: 01:17:00 | CD3: 01:18:00 | CE3: 01:19:00 | CF3: 01:20:00 | CG3: 01:21:00 | CH3: 01:22:00 | CI3: 01:23:00 | CJ3: 01:24:00 | CK3: 01:25:00 | CL3: 01:26:00 | CM3: 01:27:00 | CN3: 01:28:00 | CO3: 01:29:00 | CP3: 01:30:00 | CQ3: 01:31:00 | CR3: 01:32:00 | CS3: 01:33:00 | CT3: 01:34:00 | CU3: 01:35:00 | CV3: 01:36:00 | CW3: 01:37:00 | CX3: 01:38:00 | CY3: 01:39:00 | CZ3: 01:40:00 | DA3: 01:41:00 | DB3: 01:42:00 | DC3: 01:43:00 | DD3: 01:44:00 | DE3: 01:45:00 | DF3: 01:46:00 | DG3: 01:47:00 | DH3: 01:48:00 | DI3: 01:49:00 | DJ3: 01:50:00 | DK3: 01:51:00 | DL3: 01:52:00 | DM3: 01:53:00 | DN3: 01:54:00 | DO3: 01:55:00 | DP3: 01:56:00 | DQ3: 01:57:00 | DR3: 01:58:00 | DS3: 01:59:00 | DT3: 02:00:00 | DU3: 02:01:00 | DV3: 02:02:00 | DW3: 02:03:00 | DX3: 02:04:00 | DY3: 02:05:00 | DZ3: 02:06:00 | EA3: 02:07:00 | EB3: 02:08:00 | EC3: 02:09:00 | ED3: 02:10:00 | EE3: 02:11:00 | EF3: 02:12:00 | EG3: 02:13:00 | EH3: 02:14:00 | EI3: 02:15:00 | EJ3: 02:16:00 | EK3: 02:17:00 | EL3: 02:18:00 | EM3: 02:19:00 | EN3: 02:20:00 | EO3: 02:21:00 | EP3: 02:22:00 | EQ3: 02:23:00 | ER3: 02:24:00 | ES3: 02:25:00 | ET3: 02:26:00 | EU3: 02:27:00 | EV3: 02:28:00 | EW3: 02:29:00 | EX3: 02:30:00 | EY3: 02:31:00 | EZ3: 02:32:00 | FA3: 02:33:00 | FB3: 02:34:00 | FC3: 02:35:00 | FD3: 02:36:00 | FE3: 02:37:00 | FF3: 02:38:00 | FG3: 02:39:00 | FH3: 02:40:00 | FI3: 02:41:00 | FJ3: 02:42:00 | FK3: 02:43:00 | FL3: 02:44:00 | FM3: 02:45:00 | FN3: 02:46:00 | FO3: 02:47:00 | FP3: 02:48:00 | FQ3: 02:49:00 | FR3: 02:50:00 | FS3: 02:51:00 | FT3: 02:52:00 | FU3: 02:53:00 | FV3: 02:54:00 | FW3: 02:55:00 | FX3: 02:56:00 | FY3: 02:57:00 | FZ3: 02:58:00 | GA3: 02:59:00 | GB3: 03:00:00 | GC3: 03:01:00 | GD3: 03:02:00 | GE3: 03:03:00 | GF3: 03:04:00 | GG3: 03:05:00 | GH3: 03:06:00 | GI3: 03:07:00 | GJ3: 03:08:00 | GK3: 03:09:00 | GL3: 03:10:00 | GM3: 03:11:00 | GN3: 03:12:00 | GO3: 03:13:00 | GP3: 03:14:00 | GQ3: 03:15:00 | GR3: 03:16:00 | GS3: 03:17:00 | GT3: 03:18:00 | GU3: 03:19:00 | GV3: 03:20:00 | GW3: 03:21:00 | GX3: 03:22:00 | GY3: 03:23:00 | GZ3: 03:24:00 | HA3: 03:25:00 | HB3: 03:26:00 | HC3: 03:27:00 | HD3: 03:28:00 | HE3: 03:29:00 | HF3: 03:30:00 | HG3: 03:31:00 | HH3: 03:32:00 | HI3: 03:33:00 | HJ3: 03:34:00 | HK3: 03:35:00 | HL3: 03:36:00 | HM3: 03:37:00 | HN3: 03:38:00 | HO3: 03:39:00 | HP3: 03:40:00 | HQ3: 03:41:00 | HR3: 03:42:00 | HS3: 03:43:00 | HT3: 03:44:00 | HU3: 03:45:00 | HV3: 03:46:00 | HW3: 03:47:00 | HX3: 03:48:00 | HY3: 03:49:00 | HZ3: 03:50:00 | IA3: 03:51:00 | IB3: 03:52:00 | IC3: 03:53:00 | ID3: 03:54:00 | IE3: 03:55:00 | IF3: 03:56:00 | IG3: 03:57:00 | IH3: 03:58:00
D7: 1 | E7: 2 | F7: 3 | G7: 4 | H7: 5 | I7: 6 | J7: 7 | K7: 8 | L7: 9 | M7: 10 | N7: 11 | O7: 12 | P7: 13 | Q7: 14 | R7: 15 | S7: 16 | T7: 17 | U7: 18 | V7: 19 | W7: 20 | X7: 21 | Y7: 22 | Z7: 23 | AA7: 24 | AB7: 25 | AC7: 26 | AD7: 27 | AE7: 28 | AF7: 29 | AG7: 30 | AH7: 31 | AI7: 32 | AJ7: 33 | AK7: 34 | AL7: 35 | AM7: 36 | AN7: 37 | AO7: 38 | AP7: 39 | AQ7: 40 | AR7: 41 | AS7: 42 | AT7: 43 | AU7: 44 | AV7: 45 | AW7: 46 | AX7: 47 | AY7: 48 | AZ7: 49 | BA7: 50 | BB7: 51 | BC7: 52 | BD7: 53 | BE7: 54 | BF7: 55 | BG7: 56 | BH7: 57 | BI7: 58 | BJ7: 59 | BK7: 60 | BL7: 61 | BM7: 62 | BN7: 63 | BO7: 64 | BP7: 65 | BQ7: 66 | BR7: 67 | BS7: 68 | BT7: 69 | BU7: 70 | BV7: 71 | BW7: 72 | BX7: 73 | BY7: 74 | BZ7: 75 | CA7: 76 | CB7: 77 | CC7: 78 | CD7: 79 | CE7: 80 | CF7: 81 | CG7: 82 | CH7: 83 | CI7: 84 | CJ7: 85 | CK7: 86 | CL7: 87 | CM7: 88 | CN7: 89 | CO7: 90 | CP7: 91 | CQ7: 92 | CR7: 93 | CS7: 94 | CT7: 95 | CU7: 96 | CV7: 97 | CW7: 98 | CX7: 99 | CY7: 100 | CZ7: 101 | DA7: 102 | DB7: 103 | DC7: 104 | DD7: 105 | DE7: 106 | DF7: 107 | DG7: 108 | DH7: 109 | DI7: 110 | DJ7: 111 | DK7: 112 | DL7: 113 | DM7: 114 | DN7: 115 | DO7: 116 | DP7: 117 | DQ7: 118 | DR7: 119 | DS7: 120 | DT7: 121 | DU7: 122 | DV7: 123 | DW7: 124 | DX7: 125 | DY7: 126 | DZ7: 127 | EA7: 128 | EB7: 129 | EC7: 130 | ED7: 131 | EE7: 132 | EF7: 133 | EG7: 134 | EH7: 135 | EI7: 136 | EJ7: 137 | EK7: 138 | EL7: 139 | EM7: 140 | EN7: 141 | EO7: 142 | EP7: 143 | EQ7: 144 | ER7: 145 | ES7: 146 | ET7: 147 | EU7: 148 | EV7: 149 | EW7: 150 | EX7: 151 | EY7: 152 | EZ7: 153 | FA7: 154 | FB7: 155 | FC7: 156 | FD7: 157 | FE7: 158 | FF7: 159 | FG7: 160 | FH7: 161 | FI7: 162 | FJ7: 163 | FK7: 164 | FL7: 165 | FM7: 166 | FN7: 167 | FO7: 168 | FP7: 169 | FQ7: 170 | FR7: 171 | FS7: 172 | FT7: 173 | FU7: 174 | FV7: 175 | FW7: 176 | FX7: 177 | FY7: 178 | FZ7: 179 | GA7: 180 | GB7: 181 | GC7: 182 | GD7: 183 | GE7: 184 | GF7: 185 | GG7: 186 | GH7: 187 | GI7: 188 | GJ7: 189 | GK7: 190 | GL7: 191 | GM7: 192 | GN7: 193 | GO7: 194 | GP7: 195 | GQ7: 196 | GR7: 197 | GS7: 198 | GT7: 199 | GU7: 200 | GV7: 201 | GW7: 202 | GX7: 203 | GY7: 204 | GZ7: 205 | HA7: 206 | HB7: 207 | HC7: 208 | HD7: 209 | HE7: 210 | HF7: 211 | HG7: 212 | HH7: 213 | HI7: 214 | HJ7: 215 | HK7: 216 | HL7: 217 | HM7: 218 | HN7: 219 | HO7: 220 | HP7: 221 | HQ7: 222 | HR7: 223 | HS7: 224 | HT7: 225 | HU7: 226 | HV7: 227 | HW7: 228 | HX7: 229 | HY7: 230 | HZ7: 231 | IA7: 232 | IB7: 233 | IC7: 234 | ID7: 235 | IE7: 236 | IF7: 237 | IG7: 238 | IH7: 239
D9: =INDEX(lstChosen,$D$7:$IH$7)=1 -> FALSE | E9: FALSE | F9: FALSE | G9: FALSE | H9: FALSE | I9: FALSE | J9: FALSE | K9: FALSE | L9: TRUE | M9: FALSE | N9: FALSE | O9: FALSE | P9: FALSE | Q9: FALSE | R9: FALSE | S9: FALSE | T9: FALSE | U9: FALSE | V9: FALSE | W9: FALSE | X9: FALSE | Y9: FALSE | Z9: FALSE | AA9: FALSE | AB9: FALSE | AC9: FALSE | AD9: FALSE | AE9: FALSE | AF9: FALSE | AG9: FALSE | AH9: FALSE | AI9: FALSE | AJ9: FALSE | AK9: TRUE | AL9: FALSE | AM9: FALSE | AN9: FALSE | AO9: FALSE | AP9: FALSE | AQ9: FALSE | AR9: FALSE | AS9: FALSE | AT9: FALSE | AU9: FALSE | AV9: FALSE | AW9: FALSE | AX9: FALSE | AY9: FALSE | AZ9: FALSE | BA9: FALSE | BB9: FALSE | BC9: FALSE | BD9: FALSE | BE9: FALSE | BF9: FALSE | BG9: FALSE | BH9: FALSE | BI9: FALSE | BJ9: FALSE | BK9: FALSE | BL9: TRUE | BM9: FALSE | BN9: FALSE | BO9: FALSE | BP9: FALSE | BQ9: FALSE | BR9: FALSE | BS9: FALSE | BT9: FALSE | BU9: FALSE | BV9: FALSE | BW9: FALSE | BX9: FALSE | BY9: FALSE | BZ9: FALSE | CA9: FALSE | CB9: FALSE | CC9: FALSE | CD9: FALSE | CE9: FALSE | CF9: FALSE | CG9: FALSE | CH9: FALSE | CI9: FALSE | CJ9: FALSE | CK9: FALSE | CL9: FALSE | CM9: FALSE | CN9: FALSE | CO9: FALSE | CP9: FALSE | CQ9: FALSE | CR9: FALSE | CS9: FALSE | CT9: FALSE | CU9: FALSE | CV9: FALSE | CW9: TRUE | CX9: FALSE | CY9: FALSE | CZ9: FALSE | DA9: FALSE | DB9: FALSE | DC9: FALSE | DD9: TRUE | DE9: FALSE | DF9: FALSE | DG9: FALSE | DH9: FALSE | DI9: FALSE | DJ9: FALSE | DK9: FALSE | DL9: FALSE | DM9: FALSE | DN9: TRUE | DO9: FALSE | DP9: FALSE | DQ9: FALSE | DR9: FALSE | DS9: FALSE | DT9: FALSE | DU9: FALSE | DV9: FALSE | DW9: FALSE | DX9: FALSE | DY9: FALSE | DZ9: FALSE | EA9: FALSE | EB9: FALSE | EC9: TRUE | ED9: FALSE | EE9: FALSE | EF9: FALSE | EG9: FALSE | EH9: FALSE | EI9: FALSE | EJ9: FALSE | EK9: FALSE | EL9: FALSE | EM9: FALSE | EN9: FALSE | EO9: FALSE | EP9: FALSE | EQ9: FALSE | ER9: FALSE | ES9: FALSE | ET9: FALSE | EU9: FALSE | EV9: FALSE | EW9: FALSE | EX9: FALSE | EY9: FALSE | EZ9: FALSE | FA9: FALSE | FB9: FALSE | FC9: FALSE | FD9: FALSE | FE9: FALSE | FF9: FALSE | FG9: FALSE | FH9: FALSE | FI9: FALSE | FJ9: FALSE | FK9: FALSE | FL9: FALSE | FM9: FALSE | FN9: FALSE | FO9: FALSE | FP9: FALSE | FQ9: FALSE | FR9: FALSE | FS9: FALSE | FT9: TRUE | FU9: FALSE | FV9: FALSE | FW9: TRUE | FX9: FALSE | FY9: FALSE | FZ9: FALSE | GA9: FALSE | GB9: FALSE | GC9: FALSE | GD9: FALSE | GE9: FALSE | GF9: FALSE | GG9: FALSE | GH9: FALSE | GI9: FALSE | GJ9: FALSE | GK9: FALSE | GL9: FALSE | GM9: FALSE | GN9: FALSE | GO9: FALSE | GP9: FALSE | GQ9: FALSE | GR9: FALSE | GS9: FALSE | GT9: TRUE | GU9: FALSE | GV9: FALSE | GW9: FALSE | GX9: FALSE | GY9: FALSE | GZ9: FALSE | HA9: FALSE | HB9: FALSE | HC9: FALSE | HD9: FALSE | HE9: FALSE | HF9: FALSE | HG9: FALSE | HH9: FALSE | HI9: FALSE | HJ9: FALSE | HK9: FALSE | HL9: FALSE | HM9: FALSE | HN9: FALSE | HO9: TRUE | HP9: FALSE | HQ9: FALSE | HR9: FALSE | HS9: FALSE | HT9: FALSE | HU9: FALSE | HV9: FALSE | HW9: FALSE | HX9: FALSE | HY9: FALSE | HZ9: FALSE | IA9: FALSE | IB9: FALSE | IC9: FALSE | ID9: FALSE | IE9: FALSE | IF9: TRUE | IG9: FALSE | IH9: FALSE
D11: =INDEX(lstChosen,$D$7:$IH$7)=2 -> FALSE | E11: FALSE | F11: FALSE | G11: FALSE | H11: FALSE | I11: FALSE | J11: FALSE | K11: FALSE | L11: FALSE | M11: FALSE | N11: FALSE | O11: FALSE | P11: FALSE | Q11: FALSE | R11: TRUE | S11: FALSE | T11: FALSE | U11: TRUE | V11: FALSE | W11: FALSE | X11: FALSE | Y11: FALSE | Z11: FALSE | AA11: FALSE | AB11: FALSE | AC11: FALSE | AD11: FALSE | AE11: TRUE | AF11: FALSE | AG11: FALSE | AH11: FALSE | AI11: FALSE | AJ11: FALSE | AK11: FALSE | AL11: FALSE | AM11: FALSE | AN11: FALSE | AO11: FALSE | AP11: FALSE | AQ11: FALSE | AR11: FALSE | AS11: FALSE | AT11: FALSE | AU11: FALSE | AV11: FALSE | AW11: FALSE | AX11: FALSE | AY11: FALSE | AZ11: FALSE | BA11: FALSE | BB11: FALSE | BC11: FALSE | BD11: FALSE | BE11: FALSE | BF11: FALSE | BG11: FALSE | BH11: TRUE | BI11: FALSE | BJ11: FALSE | BK11: FALSE | BL11: FALSE | BM11: FALSE | BN11: FALSE | BO11: FALSE | BP11: FALSE | BQ11: FALSE | BR11: FALSE | BS11: FALSE | BT11: FALSE | BU11: FALSE | BV11: FALSE | BW11: FALSE | BX11: FALSE | BY11: FALSE | BZ11: FALSE | CA11: FALSE | CB11: FALSE | CC11: FALSE | CD11: FALSE | CE11: FALSE | CF11: FALSE | CG11: FALSE | CH11: FALSE | CI11: FALSE | CJ11: FALSE | CK11: TRUE | CL11: FALSE | CM11: FALSE | CN11: FALSE | CO11: FALSE | CP11: FALSE | CQ11: FALSE | CR11: FALSE | CS11: FALSE | CT11: FALSE | CU11: FALSE | CV11: FALSE | CW11: FALSE | CX11: FALSE | CY11: FALSE | CZ11: TRUE | DA11: FALSE | DB11: FALSE | DC11: FALSE | DD11: FALSE | DE11: FALSE | DF11: FALSE | DG11: TRUE | DH11: FALSE | DI11: FALSE | DJ11: FALSE | DK11: FALSE | DL11: FALSE | DM11: FALSE | DN11: FALSE | DO11: FALSE | DP11: FALSE | DQ11: FALSE | DR11: FALSE | DS11: FALSE | DT11: FALSE | DU11: FALSE | DV11: FALSE | DW11: FALSE | DX11: TRUE | DY11: FALSE | DZ11: FALSE | EA11: FALSE | EB11: FALSE | EC11: FALSE | ED11: FALSE | EE11: FALSE | EF11: FALSE | EG11: TRUE | EH11: FALSE | EI11: FALSE | EJ11: FALSE | EK11: FALSE | EL11: FALSE | EM11: FALSE | EN11: FALSE | EO11: FALSE | EP11: FALSE | EQ11: FALSE | ER11: FALSE | ES11: FALSE | ET11: FALSE | EU11: FALSE | EV11: FALSE | EW11: FALSE | EX11: FALSE | EY11: FALSE | EZ11: FALSE | FA11: FALSE | FB11: FALSE | FC11: FALSE | FD11: FALSE | FE11: FALSE | FF11: FALSE | FG11: FALSE | FH11: FALSE | FI11: FALSE | FJ11: FALSE | FK11: FALSE | FL11: FALSE | FM11: FALSE | FN11: FALSE | FO11: FALSE | FP11: FALSE | FQ11: TRUE | FR11: FALSE | FS11: FALSE | FT11: FALSE | FU11: FALSE | FV11: FALSE | FW11: FALSE | FX11: FALSE | FY11: FALSE | FZ11: FALSE | GA11: TRUE | GB11: FALSE | GC11: FALSE | GD11: FALSE | GE11: FALSE | GF11: FALSE | GG11: FALSE | GH11: FALSE | GI11: FALSE | GJ11: FALSE | GK11: FALSE | GL11: FALSE | GM11: TRUE | GN11: FALSE | GO11: TRUE | GP11: FALSE | GQ11: FALSE | GR11: FALSE | GS11: FALSE | GT11: FALSE | GU11: FALSE | GV11: FALSE | GW11: FALSE | GX11: FALSE | GY11: FALSE | GZ11: FALSE | HA11: FALSE | HB11: FALSE | HC11: FALSE | HD11: FALSE | HE11: FALSE | HF11: FALSE | HG11: FALSE | HH11: TRUE | HI11: FALSE | HJ11: FALSE | HK11: FALSE | HL11: TRUE | HM11: FALSE | HN11: FALSE | HO11: FALSE | HP11: FALSE | HQ11: FALSE | HR11: FALSE | HS11: FALSE | HT11: FALSE | HU11: FALSE | HV11: FALSE | HW11: FALSE | HX11: FALSE | HY11: FALSE | HZ11: FALSE | IA11: TRUE | IB11: FALSE | IC11: FALSE | ID11: FALSE | IE11: FALSE | IF11: FALSE | IG11: FALSE | IH11: FALSE
C14: Games
D15: =MOD(VLOOKUP(D3,DATA!$I$5:$K$49,3),2) -> 1 | E15: =MOD(VLOOKUP(E3,DATA!$I$5:$K$49,3),2) -> 1 | F15: =MOD(VLOOKUP(F3,DATA!$I$5:$K$49,3),2) -> 0 | G15: =MOD(VLOOKUP(G3,DATA!$I$5:$K$49,3),2) -> 0 | H15: =MOD(VLOOKUP(H3,DATA!$I$5:$K$49,3),2) -> 0 | I15: =MOD(VLOOKUP(I3,DATA!$I$5:$K$49,3),2) -> 0 | J15: =MOD(VLOOKUP(J3,DATA!$I$5:$K$49,3),2) -> 1 | K15: =MOD(VLOOKUP(K3,DATA!$I$5:$K$49,3),2) -> 1 | L15: =MOD(VLOOKUP(L3,DATA!$I$5:$K$49,3),2) -> 1 | M15: =MOD(VLOOKUP(M3,DATA!$I$5:$K$49,3),2) -> 1 | N15: =MOD(VLOOKUP(N3,DATA!$I$5:$K$49,3),2) -> 1 | O15: =MOD(VLOOKUP(O3,DATA!$I$5:$K$49,3),2) -> 0 | P15: =MOD(VLOOKUP(P3,DATA!$I$5:$K$49,3),2) -> 0 | Q15: =MOD(VLOOKUP(Q3,DATA!$I$5:$K$49,3),2) -> 0 | R15: =MOD(VLOOKUP(R3,DATA!$I$5:$K$49,3),2) -> 0 | S15: =MOD(VLOOKUP(S3,DATA!$I$5:$K$49,3),2) -> 0 | T15: =MOD(VLOOKUP(T3,DATA!$I$5:$K$49,3),2) -> 0 | U15: =MOD(VLOOKUP(U3,DATA!$I$5:$K$49,3),2) -> 0 | V15: =MOD(VLOOKUP(V3,DATA!$I$5:$K$49,3),2) -> 0 | W15: =MOD(VLOOKUP(W3,DATA!$I$5:$K$49,3),2) -> 0 | X15: =MOD(VLOOKUP(X3,DATA!$I$5:$K$49,3),2) -> 1 | Y15: =MOD(VLOOKUP(Y3,DATA!$I$5:$K$49,3),2) -> 1 | Z15: =MOD(VLOOKUP(Z3,DATA!$I$5:$K$49,3),2) -> 1 | AA15: =MOD(VLOOKUP(AA3,DATA!$I$5:$K$49,3),2) -> 1 | AB15: =MOD(VLOOKUP(AB3,DATA!$I$5:$K$49,3),2) -> 1 | AC15: =MOD(VLOOKUP(AC3,DATA!$I$5:$K$49,3),2) -> 1 | AD15: =MOD(VLOOKUP(AD3,DATA!$I$5:$K$49,3),2) -> 0 | AE15: =MOD(VLOOKUP(AE3,DATA!$I$5:$K$49,3),2) -> 0 | AF15: =MOD(VLOOKUP(AF3,DATA!$I$5:$K$49,3),2) -> 0 | AG15: =MOD(VLOOKUP(AG3,DATA!$I$5:$K$49,3),2) -> 0 | AH15: =MOD(VLOOKUP(AH3,DATA!$I$5:$K$49,3),2) -> 0 | AI15: =MOD(VLOOKUP(AI3,DATA!$I$5:$K$49,3),2) -> 0 | AJ15: =MOD(VLOOKUP(AJ3,DATA!$I$5:$K$49,3),2) -> 0 | AK15: =MOD(VLOOKUP(AK3,DATA!$I$5:$K$49,3),2) -> 1 | AL15: =MOD(VLOOKUP(AL3,DATA!$I$5:$K$49,3),2) -> 1 | AM15: =MOD(VLOOKUP(AM3,DATA!$I$5:$K$49,3),2) -> 0 | AN15: =MOD(VLOOKUP(AN3,DATA!$I$5:$K$49,3),2) -> 0 | AO15: =MOD(VLOOKUP(AO3,DATA!$I$5:$K$49,3),2) -> 0 | AP15: =MOD(VLOOKUP(AP3,DATA!$I$5:$K$49,3),2) -> 0 | AQ15: =MOD(VLOOKUP(AQ3,DATA!$I$5:$K$49,3),2) -> 0 | AR15: =MOD(VLOOKUP(AR3,DATA!$I$5:$K$49,3),2) -> 0 | AS15: =MOD(VLOOKUP(AS3,DATA!$I$5:$K$49,3),2) -> 0 | AT15: =MOD(VLOOKUP(AT3,DATA!$I$5:$K$49,3),2) -> 0 | AU15: =MOD(VLOOKUP(AU3,DATA!$I$5:$K$49,3),2) -> 0 | AV15: =MOD(VLOOKUP(AV3,DATA!$I$5:$K$49,3),2) -> 0 | AW15: =MOD(VLOOKUP(AW3,DATA!$I$5:$K$49,3),2) -> 0 | AX15: =MOD(VLOOKUP(AX3,DATA!$I$5:$K$49,3),2) -> 0 | AY15: =MOD(VLOOKUP(AY3,DATA!$I$5:$K$49,3),2) -> 0 | AZ15: =MOD(VLOOKUP(AZ3,DATA!$I$5:$K$49,3),2) -> 0 | BA15: =MOD(VLOOKUP(BA3,DATA!$I$5:$K$49,3),2) -> 1 | BB15: =MOD(VLOOKUP(BB3,DATA!$I$5:$K$49,3),2) -> 1 | BC15: =MOD(VLOOKUP(BC3,DATA!$I$5:$K$49,3),2) -> 0 | BD15: =MOD(VLOOKUP(BD3,DATA!$I$5:$K$49,3),2) -> 0 | BE15: =MOD(VLOOKUP(BE3,DATA!$I$5:$K$49,3),2) -> 0 | BF15: =MOD(VLOOKUP(BF3,DATA!$I$5:$K$49,3),2) -> 0 | BG15: =MOD(VLOOKUP(BG3,DATA!$I$5:$K$49,3),2) -> 0 | BH15: =MOD(VLOOKUP(BH3,DATA!$I$5:$K$49,3),2) -> 0 | BI15: =MOD(VLOOKUP(BI3,DATA!$I$5:$K$49,3),2) -> 0 | BJ15: =MOD(VLOOKUP(BJ3,DATA!$I$5:$K$49,3),2) ->  | BK15: =MOD(VLOOKUP(BK3,DATA!$I$5:$K$49,3),2) ->  | BL15: =MOD(VLOOKUP(BL3,DATA!$I$5:$K$49,3),2) -> 0 | BM15: =MOD(VLOOKUP(BM3,DATA!$I$5:$K$49,3),2) -> 0 | BN15: =MOD(VLOOKUP(BN3,DATA!$I$5:$K$49,3),2) -> 0 | BO15: =MOD(VLOOKUP(BO3,DATA!$I$5:$K$49,3),2) -> 0 | BP15: =MOD(VLOOKUP(BP3,DATA!$I$5:$K$49,3),2) -> 0 | BQ15: =MOD(VLOOKUP(BQ3,DATA!$I$5:$K$49,3),2) -> 0 | BR15: =MOD(VLOOKUP(BR3,DATA!$I$5:$K$49,3),2) -> 0 | BS15: =MOD(VLOOKUP(BS3,DATA!$I$5:$K$49,3),2) -> 0 | BT15: =MOD(VLOOKUP(BT3,DATA!$I$5:$K$49,3),2) -> 0 | BU15: =MOD(VLOOKUP(BU3,DATA!$I$5:$K$49,3),2) -> 1 | BV15: =MOD(VLOOKUP(BV3,DATA!$I$5:$K$49,3),2) -> 1 | BW15: =MOD(VLOOKUP(BW3,DATA!$I$5:$K$49,3),2) -> 1 | BX15: =MOD(VLOOKUP(BX3,DATA!$I$5:$K$49,3),2) -> 0 | BY15: =MOD(VLOOKUP(BY3,DATA!$I$5:$K$49,3),2) -> 0 | BZ15: =MOD(VLOOKUP(BZ3,DATA!$I$5:$K$49,3),2) -> 0 | CA15: =MOD(VLOOKUP(CA3,DATA!$I$5:$K$49,3),2) -> 0 | CB15: =MOD(VLOOKUP(CB3,DATA!$I$5:$K$49,3),2) -> 1 | CC15: =MOD(VLOOKUP(CC3,DATA!$I$5:$K$49,3),2) -> 1 | CD15: =MOD(VLOOKUP(CD3,DATA!$I$5:$K$49,3),2) -> 1 | CE15: =MOD(VLOOKUP(CE3,DATA!$I$5:$K$49,3),2) -> 1 | CF15: =MOD(VLOOKUP(CF3,DATA!$I$5:$K$49,3),2) -> 1 | CG15: =MOD(VLOOKUP(CG3,DATA!$I$5:$K$49,3),2) -> 0 | CH15: =MOD(VLOOKUP(CH3,DATA!$I$5:$K$49,3),2) -> 0 | CI15: =MOD(VLOOKUP(CI3,DATA!$I$5:$K$49,3),2) -> 0 | CJ15: =MOD(VLOOKUP(CJ3,DATA!$I$5:$K$49,3),2) -> 0 | CK15: =MOD(VLOOKUP(CK3,DATA!$I$5:$K$49,3),2) -> 1 | CL15: =MOD(VLOOKUP(CL3,DATA!$I$5:$K$49,3),2) -> 1 | CM15: =MOD(VLOOKUP(CM3,DATA!$I$5:$K$49,3),2) -> 0 | CN15: =MOD(VLOOKUP(CN3,DATA!$I$5:$K$49,3),2) -> 0 | CO15: =MOD(VLOOKUP(CO3,DATA!$I$5:$K$49,3),2) -> 0 | CP15: =MOD(VLOOKUP(CP3,DATA!$I$5:$K$49,3),2) -> 1 | CQ15: =MOD(VLOOKUP(CQ3,DATA!$I$5:$K$49,3),2) -> 1 | CR15: =MOD(VLOOKUP(CR3,DATA!$I$5:$K$49,3),2) -> 1 | CS15: =MOD(VLOOKUP(CS3,DATA!$I$5:$K$49,3),2) -> 1 | CT15: =MOD(VLOOKUP(CT3,DATA!$I$5:$K$49,3),2) -> 1 | CU15: =MOD(VLOOKUP(CU3,DATA!$I$5:$K$49,3),2) -> 1 | CV15: =MOD(VLOOKUP(CV3,DATA!$I$5:$K$49,3),2) -> 1 | CW15: =MOD(VLOOKUP(CW3,DATA!$I$5:$K$49,3),2) -> 1 | CX15: =MOD(VLOOKUP(CX3,DATA!$I$5:$K$49,3),2) -> 0 | CY15: =MOD(VLOOKUP(CY3,DATA!$I$5:$K$49,3),2) -> 0 | CZ15: =MOD(VLOOKUP(CZ3,DATA!$I$5:$K$49,3),2) -> 0 | DA15: =MOD(VLOOKUP(DA3,DATA!$I$5:$K$49,3),2) -> 1 | DB15: =MOD(VLOOKUP(DB3,DATA!$I$5:$K$49,3),2) -> 1 | DC15: =MOD(VLOOKUP(DC3,DATA!$I$5:$K$49,3),2) -> 1 | DD15: =MOD(VLOOKUP(DD3,DATA!$I$5:$K$49,3),2) -> 1 | DE15: =MOD(VLOOKUP(DE3,DATA!$I$5:$K$49,3),2) -> 0 | DF15: =MOD(VLOOKUP(DF3,DATA!$I$5:$K$49,3),2) -> 0 | DG15: =MOD(VLOOKUP(DG3,DATA!$I$5:$K$49,3),2) -> 0 | DH15: =MOD(VLOOKUP(DH3,DATA!$I$5:$K$49,3),2) -> 0 | DI15: =MOD(VLOOKUP(DI3,DATA!$I$5:$K$49,3),2) -> 0 | DJ15: =MOD(VLOOKUP(DJ3,DATA!$I$5:$K$49,3),2) -> 0 | DK15: =MOD(VLOOKUP(DK3,DATA!$I$5:$K$49,3),2) -> 0 | DL15: =MOD(VLOOKUP(DL3,DATA!$I$5:$K$49,3),2) ->  | DM15: =MOD(VLOOKUP(DM3,DATA!$I$5:$K$49,3),2) ->  | DN15: =MOD(VLOOKUP(DN3,DATA!$I$5:$K$49,3),2) -> 1 | DO15: =MOD(VLOOKUP(DO3,DATA!$I$5:$K$49,3),2) -> 0 | DP15: =MOD(VLOOKUP(DP3,DATA!$I$5:$K$49,3),2) -> 0 | DQ15: =MOD(VLOOKUP(DQ3,DATA!$I$5:$K$49,3),2) -> 0 | DR15: =MOD(VLOOKUP(DR3,DATA!$I$5:$K$49,3),2) -> 0 | DS15: =MOD(VLOOKUP(DS3,DATA!$I$5:$K$49,3),2) -> 0 | DT15: =MOD(VLOOKUP(DT3,DATA!$I$5:$K$49,3),2) -> 0 | DU15: =MOD(VLOOKUP(DU3,DATA!$I$5:$K$49,3),2) -> 1 | DV15: =MOD(VLOOKUP(DV3,DATA!$I$5:$K$49,3),2) -> 1 | DW15: =MOD(VLOOKUP(DW3,DATA!$I$5:$K$49,3),2) -> 0 | DX15: =MOD(VLOOKUP(DX3,DATA!$I$5:$K$49,3),2) -> 0 | DY15: =MOD(VLOOKUP(DY3,DATA!$I$5:$K$49,3),2) -> 0 | DZ15: =MOD(VLOOKUP(DZ3,DATA!$I$5:$K$49,3),2) -> 0 | EA15: =MOD(VLOOKUP(EA3,DATA!$I$5:$K$49,3),2) -> 1 | EB15: =MOD(VLOOKUP(EB3,DATA!$I$5:$K$49,3),2) -> 1 | EC15: =MOD(VLOOKUP(EC3,DATA!$I$5:$K$49,3),2) -> 1 | ED15: =MOD(VLOOKUP(ED3,DATA!$I$5:$K$49,3),2) -> 1 | EE15: =MOD(VLOOKUP(EE3,DATA!$I$5:$K$49,3),2) -> 1 | EF15: =MOD(VLOOKUP(EF3,DATA!$I$5:$K$49,3),2) -> 0 | EG15: =MOD(VLOOKUP(EG3,DATA!$I$5:$K$49,3),2) -> 0 | EH15: =MOD(VLOOKUP(EH3,DATA!$I$5:$K$49,3),2) -> 0 | EI15: =MOD(VLOOKUP(EI3,DATA!$I$5:$K$49,3),2) -> 0 | EJ15: =MOD(VLOOKUP(EJ3,DATA!$I$5:$K$49,3),2) -> 0 | EK15: =MOD(VLOOKUP(EK3,DATA!$I$5:$K$49,3),2) -> 0 | EL15: =MOD(VLOOKUP(EL3,DATA!$I$5:$K$49,3),2) -> 0 | EM15: =MOD(VLOOKUP(EM3,DATA!$I$5:$K$49,3),2) -> 0 | EN15: =MOD(VLOOKUP(EN3,DATA!$I$5:$K$49,3),2) -> 0 | EO15: =MOD(VLOOKUP(EO3,DATA!$I$5:$K$49,3),2) -> 0 | EP15: =MOD(VLOOKUP(EP3,DATA!$I$5:$K$49,3),2) -> 0 | EQ15: =MOD(VLOOKUP(EQ3,DATA!$I$5:$K$49,3),2) -> 0 | ER15: =MOD(VLOOKUP(ER3,DATA!$I$5:$K$49,3),2) -> 0 | ES15: =MOD(VLOOKUP(ES3,DATA!$I$5:$K$49,3),2) -> 0 | ET15: =MOD(VLOOKUP(ET3,DATA!$I$5:$K$49,3),2) -> 0 | EU15: =MOD(VLOOKUP(EU3,DATA!$I$5:$K$49,3),2) -> 0 | EV15: =MOD(VLOOKUP(EV3,DATA!$I$5:$K$49,3),2) -> 0 | EW15: =MOD(VLOOKUP(EW3,DATA!$I$5:$K$49,3),2) -> 0 | EX15: =MOD(VLOOKUP(EX3,DATA!$I$5:$K$49,3),2) -> 0 | EY15: =MOD(VLOOKUP(EY3,DATA!$I$5:$K$49,3),2) -> 0 | EZ15: =MOD(VLOOKUP(EZ3,DATA!$I$5:$K$49,3),2) -> 0 | FA15: =MOD(VLOOKUP(FA3,DATA!$I$5:$K$49,3),2) -> 0 | FB15: =MOD(VLOOKUP(FB3,DATA!$I$5:$K$49,3),2) -> 0 | FC15: =MOD(VLOOKUP(FC3,DATA!$I$5:$K$49,3),2) -> 0 | FD15: =MOD(VLOOKUP(FD3,DATA!$I$5:$K$49,3),2) -> 0 | FE15: =MOD(VLOOKUP(FE3,DATA!$I$5:$K$49,3),2) -> 1 | FF15: =MOD(VLOOKUP(FF3,DATA!$I$5:$K$49,3),2) -> 1 | FG15: =MOD(VLOOKUP(FG3,DATA!$I$5:$K$49,3),2) -> 1 | FH15: =MOD(VLOOKUP(FH3,DATA!$I$5:$K$49,3),2) -> 1 | FI15: =MOD(VLOOKUP(FI3,DATA!$I$5:$K$49,3),2) -> 1 | FJ15: =MOD(VLOOKUP(FJ3,DATA!$I$5:$K$49,3),2) -> 1 | FK15: =MOD(VLOOKUP(FK3,DATA!$I$5:$K$49,3),2) -> 1 | FL15: =MOD(VLOOKUP(FL3,DATA!$I$5:$K$49,3),2) -> 0 | FM15: =MOD(VLOOKUP(FM3,DATA!$I$5:$K$49,3),2) -> 0 | FN15: =MOD(VLOOKUP(FN3,DATA!$I$5:$K$49,3),2) -> 0 | FO15: =MOD(VLOOKUP(FO3,DATA!$I$5:$K$49,3),2) -> 0 | FP15: =MOD(VLOOKUP(FP3,DATA!$I$5:$K$49,3),2) -> 0 | FQ15: =MOD(VLOOKUP(FQ3,DATA!$I$5:$K$49,3),2) -> 0 | FR15: =MOD(VLOOKUP(FR3,DATA!$I$5:$K$49,3),2) -> 1 | FS15: =MOD(VLOOKUP(FS3,DATA!$I$5:$K$49,3),2) -> 1 | FT15: =MOD(VLOOKUP(FT3,DATA!$I$5:$K$49,3),2) -> 1 | FU15: =MOD(VLOOKUP(FU3,DATA!$I$5:$K$49,3),2) -> 1 | FV15: =MOD(VLOOKUP(FV3,DATA!$I$5:$K$49,3),2) -> 1 | FW15: =MOD(VLOOKUP(FW3,DATA!$I$5:$K$49,3),2) ->  | FX15: =MOD(VLOOKUP(FX3,DATA!$I$5:$K$49,3),2) ->  | FY15: =MOD(VLOOKUP(FY3,DATA!$I$5:$K$49,3),2) -> 1 | FZ15: =MOD(VLOOKUP(FZ3,DATA!$I$5:$K$49,3),2) -> 1 | GA15: =MOD(VLOOKUP(GA3,DATA!$I$5:$K$49,3),2) -> 1 | GB15: =MOD(VLOOKUP(GB3,DATA!$I$5:$K$49,3),2) -> 1 | GC15: =MOD(VLOOKUP(GC3,DATA!$I$5:$K$49,3),2) -> 1 | GD15: =MOD(VLOOKUP(GD3,DATA!$I$5:$K$49,3),2) -> 0 | GE15: =MOD(VLOOKUP(GE3,DATA!$I$5:$K$49,3),2) -> 0 | GF15: =MOD(VLOOKUP(GF3,DATA!$I$5:$K$49,3),2) -> 0 | GG15: =MOD(VLOOKUP(GG3,DATA!$I$5:$K$49,3),2) -> 0 | GH15: =MOD(VLOOKUP(GH3,DATA!$I$5:$K$49,3),2) -> 0 | GI15: =MOD(VLOOKUP(GI3,DATA!$I$5:$K$49,3),2) -> 0 | GJ15: =MOD(VLOOKUP(GJ3,DATA!$I$5:$K$49,3),2) -> 0 | GK15: =MOD(VLOOKUP(GK3,DATA!$I$5:$K$49,3),2) -> 1 | GL15: =MOD(VLOOKUP(GL3,DATA!$I$5:$K$49,3),2) -> 1 | GM15: =MOD(VLOOKUP(GM3,DATA!$I$5:$K$49,3),2) -> 1 | GN15: =MOD(VLOOKUP(GN3,DATA!$I$5:$K$49,3),2) -> 1 | GO15: =MOD(VLOOKUP(GO3,DATA!$I$5:$K$49,3),2) -> 1 | GP15: =MOD(VLOOKUP(GP3,DATA!$I$5:$K$49,3),2) -> 1 | GQ15: =MOD(VLOOKUP(GQ3,DATA!$I$5:$K$49,3),2) -> 0 | GR15: =MOD(VLOOKUP(GR3,DATA!$I$5:$K$49,3),2) -> 0 | GS15: =MOD(VLOOKUP(GS3,DATA!$I$5:$K$49,3),2) -> 0 | GT15: =MOD(VLOOKUP(GT3,DATA!$I$5:$K$49,3),2) -> 0 | GU15: =MOD(VLOOKUP(GU3,DATA!$I$5:$K$49,3),2) -> 0 | GV15: =MOD(VLOOKUP(GV3,DATA!$I$5:$K$49,3),2) -> 1 | GW15: =MOD(VLOOKUP(GW3,DATA!$I$5:$K$49,3),2) -> 1 | GX15: =MOD(VLOOKUP(GX3,DATA!$I$5:$K$49,3),2) -> 1 | GY15: =MOD(VLOOKUP(GY3,DATA!$I$5:$K$49,3),2) -> 1 | GZ15: =MOD(VLOOKUP(GZ3,DATA!$I$5:$K$49,3),2) -> 0 | HA15: =MOD(VLOOKUP(HA3,DATA!$I$5:$K$49,3),2) -> 0 | HB15: =MOD(VLOOKUP(HB3,DATA!$I$5:$K$49,3),2) -> 0 | HC15: =MOD(VLOOKUP(HC3,DATA!$I$5:$K$49,3),2) -> 0 | HD15: =MOD(VLOOKUP(HD3,DATA!$I$5:$K$49,3),2) -> 0 | HE15: =MOD(VLOOKUP(HE3,DATA!$I$5:$K$49,3),2) -> 0 | HF15: =MOD(VLOOKUP(HF3,DATA!$I$5:$K$49,3),2) -> 0 | HG15: =MOD(VLOOKUP(HG3,DATA!$I$5:$K$49,3),2) -> 1 | HH15: =MOD(VLOOKUP(HH3,DATA!$I$5:$K$49,3),2) -> 1 | HI15: =MOD(VLOOKUP(HI3,DATA!$I$5:$K$49,3),2) -> 1 | HJ15: =MOD(VLOOKUP(HJ3,DATA!$I$5:$K$49,3),2) -> 1 | HK15: =MOD(VLOOKUP(HK3,DATA!$I$5:$K$49,3),2) -> 1 | HL15: =MOD(VLOOKUP(HL3,DATA!$I$5:$K$49,3),2) -> 0 | HM15: =MOD(VLOOKUP(HM3,DATA!$I$5:$K$49,3),2) -> 0 | HN15: =MOD(VLOOKUP(HN3,DATA!$I$5:$K$49,3),2) -> 0 | HO15: =MOD(VLOOKUP(HO3,DATA!$I$5:$K$49,3),2) -> 0 | HP15: =MOD(VLOOKUP(HP3,DATA!$I$5:$K$49,3),2) -> 0 | HQ15: =MOD(VLOOKUP(HQ3,DATA!$I$5:$K$49,3),2) -> 0 | HR15: =MOD(VLOOKUP(HR3,DATA!$I$5:$K$49,3),2) -> 1 | HS15: =MOD(VLOOKUP(HS3,DATA!$I$5:$K$49,3),2) -> 1 | HT15: =MOD(VLOOKUP(HT3,DATA!$I$5:$K$49,3),2) -> 1 | HU15: =MOD(VLOOKUP(HU3,DATA!$I$5:$K$49,3),2) -> 1 | HV15: =MOD(VLOOKUP(HV3,DATA!$I$5:$K$49,3),2) -> 1 | HW15: =MOD(VLOOKUP(HW3,DATA!$I$5:$K$49,3),2) -> 1 | HX15: =MOD(VLOOKUP(HX3,DATA!$I$5:$K$49,3),2) -> 1 | HY15: =MOD(VLOOKUP(HY3,DATA!$I$5:$K$49,3),2) -> 1 | HZ15: =MOD(VLOOKUP(HZ3,DATA!$I$5:$K$49,3),2) -> 1 | IA15: =MOD(VLOOKUP(IA3,DATA!$I$5:$K$49,3),2) -> 1 | IB15: =MOD(VLOOKUP(IB3,DATA!$I$5:$K$49,3),2) -> 1 | IC15: =MOD(VLOOKUP(IC3,DATA!$I$5:$K$49,3),2) -> 0 | ID15: =MOD(VLOOKUP(ID3,DATA!$I$5:$K$49,3),2) -> 0 | IE15: =MOD(VLOOKUP(IE3,DATA!$I$5:$K$49,3),2) -> 0 | IF15: =MOD(VLOOKUP(IF3,DATA!$I$5:$K$49,3),2) -> 0 | IG15: =MOD(VLOOKUP(IG3,DATA!$I$5:$K$49,3),2) -> 0 | IH15: =MOD(VLOOKUP(IH3,DATA!$I$5:$K$49,3),2) -> 0
D16: =VLOOKUP(D3,DATA!$I$5:$J$49,2) -> 1 | E16: =VLOOKUP(E3,DATA!$I$5:$J$49,2) -> 1 | F16: =VLOOKUP(F3,DATA!$I$5:$J$49,2) -> 1 | G16: =VLOOKUP(G3,DATA!$I$5:$J$49,2) -> 1 | H16: =VLOOKUP(H3,DATA!$I$5:$J$49,2) -> 1 | I16: =VLOOKUP(I3,DATA!$I$5:$J$49,2) -> 1 | J16: =VLOOKUP(J3,DATA!$I$5:$J$49,2) -> 1 | K16: =VLOOKUP(K3,DATA!$I$5:$J$49,2) -> 1 | L16: =VLOOKUP(L3,DATA!$I$5:$J$49,2) -> 1 | M16: =VLOOKUP(M3,DATA!$I$5:$J$49,2) -> 1 | N16: =VLOOKUP(N3,DATA!$I$5:$J$49,2) -> 1 | O16: =VLOOKUP(O3,DATA!$I$5:$J$49,2) -> 1 | P16: =VLOOKUP(P3,DATA!$I$5:$J$49,2) -> 1 | Q16: =VLOOKUP(Q3,DATA!$I$5:$J$49,2) -> 1 | R16: =VLOOKUP(R3,DATA!$I$5:$J$49,2) -> 1 | S16: =VLOOKUP(S3,DATA!$I$5:$J$49,2) -> 1 | T16: =VLOOKUP(T3,DATA!$I$5:$J$49,2) -> 1 | U16: =VLOOKUP(U3,DATA!$I$5:$J$49,2) -> 1 | V16: =VLOOKUP(V3,DATA!$I$5:$J$49,2) -> 1 | W16: =VLOOKUP(W3,DATA!$I$5:$J$49,2) -> 1 | X16: =VLOOKUP(X3,DATA!$I$5:$J$49,2) -> 1 | Y16: =VLOOKUP(Y3,DATA!$I$5:$J$49,2) -> 1 | Z16: =VLOOKUP(Z3,DATA!$I$5:$J$49,2) -> 1 | AA16: =VLOOKUP(AA3,DATA!$I$5:$J$49,2) -> 1 | AB16: =VLOOKUP(AB3,DATA!$I$5:$J$49,2) -> 1 | AC16: =VLOOKUP(AC3,DATA!$I$5:$J$49,2) -> 1 | AD16: =VLOOKUP(AD3,DATA!$I$5:$J$49,2) -> 1 | AE16: =VLOOKUP(AE3,DATA!$I$5:$J$49,2) -> 1 | AF16: =VLOOKUP(AF3,DATA!$I$5:$J$49,2) -> 1 | AG16: =VLOOKUP(AG3,DATA!$I$5:$J$49,2) -> 1 | AH16: =VLOOKUP(AH3,DATA!$I$5:$J$49,2) -> 1 | AI16: =VLOOKUP(AI3,DATA!$I$5:$J$49,2) -> 1 | AJ16: =VLOOKUP(AJ3,DATA!$I$5:$J$49,2) -> 1 | AK16: =VLOOKUP(AK3,DATA!$I$5:$J$49,2) -> 1 | AL16: =VLOOKUP(AL3,DATA!$I$5:$J$49,2) -> 1 | AM16: =VLOOKUP(AM3,DATA!$I$5:$J$49,2) -> 1 | AN16: =VLOOKUP(AN3,DATA!$I$5:$J$49,2) -> 1 | AO16: =VLOOKUP(AO3,DATA!$I$5:$J$49,2) -> 1 | AP16: =VLOOKUP(AP3,DATA!$I$5:$J$49,2) -> 1 | AQ16: =VLOOKUP(AQ3,DATA!$I$5:$J$49,2) -> 1 | AR16: =VLOOKUP(AR3,DATA!$I$5:$J$49,2) -> 1 | AS16: =VLOOKUP(AS3,DATA!$I$5:$J$49,2) -> 1 | AT16: =VLOOKUP(AT3,DATA!$I$5:$J$49,2) -> 1 | AU16: =VLOOKUP(AU3,DATA!$I$5:$J$49,2) -> 1 | AV16: =VLOOKUP(AV3,DATA!$I$5:$J$49,2) -> 1 | AW16: =VLOOKUP(AW3,DATA!$I$5:$J$49,2) -> 1 | AX16: =VLOOKUP(AX3,DATA!$I$5:$J$49,2) -> 1 | AY16: =VLOOKUP(AY3,DATA!$I$5:$J$49,2) -> 1 | AZ16: =VLOOKUP(AZ3,DATA!$I$5:$J$49,2) -> 1 | BA16: =VLOOKUP(BA3,DATA!$I$5:$J$49,2) -> 1 | BB16: =VLOOKUP(BB3,DATA!$I$5:$J$49,2) -> 1 | BC16: =VLOOKUP(BC3,DATA!$I$5:$J$49,2) -> 1 | BD16: =VLOOKUP(BD3,DATA!$I$5:$J$49,2) -> 1 | BE16: =VLOOKUP(BE3,DATA!$I$5:$J$49,2) -> 1 | BF16: =VLOOKUP(BF3,DATA!$I$5:$J$49,2) -> 1 | BG16: =VLOOKUP(BG3,DATA!$I$5:$J$49,2) -> 1 | BH16: =VLOOKUP(BH3,DATA!$I$5:$J$49,2) -> 1 | BI16: =VLOOKUP(BI3,DATA!$I$5:$J$49,2) -> 1 | BL16: =VLOOKUP(BL3,DATA!$I$5:$J$49,2) -> 2 | BM16: =VLOOKUP(BM3,DATA!$I$5:$J$49,2) -> 2 | BN16: =VLOOKUP(BN3,DATA!$I$5:$J$49,2) -> 2 | BO16: =VLOOKUP(BO3,DATA!$I$5:$J$49,2) -> 2 | BP16: =VLOOKUP(BP3,DATA!$I$5:$J$49,2) -> 2 | BQ16: =VLOOKUP(BQ3,DATA!$I$5:$J$49,2) -> 2 | BR16: =VLOOKUP(BR3,DATA!$I$5:$J$49,2) -> 2 | BS16: =VLOOKUP(BS3,DATA!$I$5:$J$49,2) -> 2 | BT16: =VLOOKUP(BT3,DATA!$I$5:$J$49,2) -> 2 | BU16: =VLOOKUP(BU3,DATA!$I$5:$J$49,2) -> 2 | BV16: =VLOOKUP(BV3,DATA!$I$5:$J$49,2) -> 2 | BW16: =VLOOKUP(BW3,DATA!$I$5:$J$49,2) -> 2 | BX16: =VLOOKUP(BX3,DATA!$I$5:$J$49,2) -> 2 | BY16: =VLOOKUP(BY3,DATA!$I$5:$J$49,2) -> 2 | BZ16: =VLOOKUP(BZ3,DATA!$I$5:$J$49,2) -> 2 | CA16: =VLOOKUP(CA3,DATA!$I$5:$J$49,2) -> 2 | CB16: =VLOOKUP(CB3,DATA!$I$5:$J$49,2) -> 2 | CC16: =VLOOKUP(CC3,DATA!$I$5:$J$49,2) -> 2 | CD16: =VLOOKUP(CD3,DATA!$I$5:$J$49,2) -> 2 | CE16: =VLOOKUP(CE3,DATA!$I$5:$J$49,2) -> 2 | CF16: =VLOOKUP(CF3,DATA!$I$5:$J$49,2) -> 2 | CG16: =VLOOKUP(CG3,DATA!$I$5:$J$49,2) -> 2 | CH16: =VLOOKUP(CH3,DATA!$I$5:$J$49,2) -> 2 | CI16: =VLOOKUP(CI3,DATA!$I$5:$J$49,2) -> 2 | CJ16: =VLOOKUP(CJ3,DATA!$I$5:$J$49,2) -> 2 | CK16: =VLOOKUP(CK3,DATA!$I$5:$J$49,2) -> 2 | CL16: =VLOOKUP(CL3,DATA!$I$5:$J$49,2) -> 2 | CM16: =VLOOKUP(CM3,DATA!$I$5:$J$49,2) -> 2 | CN16: =VLOOKUP(CN3,DATA!$I$5:$J$49,2) -> 2 | CO16: =VLOOKUP(CO3,DATA!$I$5:$J$49,2) -> 2 | CP16: =VLOOKUP(CP3,DATA!$I$5:$J$49,2) -> 2 | CQ16: =VLOOKUP(CQ3,DATA!$I$5:$J$49,2) -> 2 | CR16: =VLOOKUP(CR3,DATA!$I$5:$J$49,2) -> 2 | CS16: =VLOOKUP(CS3,DATA!$I$5:$J$49,2) -> 2 | CT16: =VLOOKUP(CT3,DATA!$I$5:$J$49,2) -> 2 | CU16: =VLOOKUP(CU3,DATA!$I$5:$J$49,2) -> 2 | CV16: =VLOOKUP(CV3,DATA!$I$5:$J$49,2) -> 2 | CW16: =VLOOKUP(CW3,DATA!$I$5:$J$49,2) -> 2 | CX16: =VLOOKUP(CX3,DATA!$I$5:$J$49,2) -> 2 | CY16: =VLOOKUP(CY3,DATA!$I$5:$J$49,2) -> 2 | CZ16: =VLOOKUP(CZ3,DATA!$I$5:$J$49,2) -> 2 | DA16: =VLOOKUP(DA3,DATA!$I$5:$J$49,2) -> 2 | DB16: =VLOOKUP(DB3,DATA!$I$5:$J$49,2) -> 2 | DC16: =VLOOKUP(DC3,DATA!$I$5:$J$49,2) -> 2 | DD16: =VLOOKUP(DD3,DATA!$I$5:$J$49,2) -> 2 | DE16: =VLOOKUP(DE3,DATA!$I$5:$J$49,2) -> 2 | DF16: =VLOOKUP(DF3,DATA!$I$5:$J$49,2) -> 2 | DG16: =VLOOKUP(DG3,DATA!$I$5:$J$49,2) -> 2 | DH16: =VLOOKUP(DH3,DATA!$I$5:$J$49,2) -> 2 | DI16: =VLOOKUP(DI3,DATA!$I$5:$J$49,2) -> 2 | DJ16: =VLOOKUP(DJ3,DATA!$I$5:$J$49,2) -> 2 | DK16: =VLOOKUP(DK3,DATA!$I$5:$J$49,2) -> 2 | DN16: =VLOOKUP(DN3,DATA!$I$5:$J$49,2) -> 3 | DO16: =VLOOKUP(DO3,DATA!$I$5:$J$49,2) -> 3 | DP16: =VLOOKUP(DP3,DATA!$I$5:$J$49,2) -> 3 | DQ16: =VLOOKUP(DQ3,DATA!$I$5:$J$49,2) -> 3 | DR16: =VLOOKUP(DR3,DATA!$I$5:$J$49,2) -> 3 | DS16: =VLOOKUP(DS3,DATA!$I$5:$J$49,2) -> 3 | DT16: =VLOOKUP(DT3,DATA!$I$5:$J$49,2) -> 3 | DU16: =VLOOKUP(DU3,DATA!$I$5:$J$49,2) -> 3 | DV16: =VLOOKUP(DV3,DATA!$I$5:$J$49,2) -> 3 | DW16: =VLOOKUP(DW3,DATA!$I$5:$J$49,2) -> 3 | DX16: =VLOOKUP(DX3,DATA!$I$5:$J$49,2) -> 3 | DY16: =VLOOKUP(DY3,DATA!$I$5:$J$49,2) -> 3 | DZ16: =VLOOKUP(DZ3,DATA!$I$5:$J$49,2) -> 3 | EA16: =VLOOKUP(EA3,DATA!$I$5:$J$49,2) -> 3 | EB16: =VLOOKUP(EB3,DATA!$I$5:$J$49,2) -> 3 | EC16: =VLOOKUP(EC3,DATA!$I$5:$J$49,2) -> 3 | ED16: =VLOOKUP(ED3,DATA!$I$5:$J$49,2) -> 3 | EE16: =VLOOKUP(EE3,DATA!$I$5:$J$49,2) -> 3 | EF16: =VLOOKUP(EF3,DATA!$I$5:$J$49,2) -> 3 | EG16: =VLOOKUP(EG3,DATA!$I$5:$J$49,2) -> 3 | EH16: =VLOOKUP(EH3,DATA!$I$5:$J$49,2) -> 3 | EI16: =VLOOKUP(EI3,DATA!$I$5:$J$49,2) -> 3 | EJ16: =VLOOKUP(EJ3,DATA!$I$5:$J$49,2) -> 3 | EK16: =VLOOKUP(EK3,DATA!$I$5:$J$49,2) -> 3 | EL16: =VLOOKUP(EL3,DATA!$I$5:$J$49,2) -> 3 | EM16: =VLOOKUP(EM3,DATA!$I$5:$J$49,2) -> 3 | EN16: =VLOOKUP(EN3,DATA!$I$5:$J$49,2) -> 3 | EO16: =VLOOKUP(EO3,DATA!$I$5:$J$49,2) -> 3 | EP16: =VLOOKUP(EP3,DATA!$I$5:$J$49,2) -> 3 | EQ16: =VLOOKUP(EQ3,DATA!$I$5:$J$49,2) -> 3 | ER16: =VLOOKUP(ER3,DATA!$I$5:$J$49,2) -> 3 | ES16: =VLOOKUP(ES3,DATA!$I$5:$J$49,2) -> 3 | ET16: =VLOOKUP(ET3,DATA!$I$5:$J$49,2) -> 3 | EU16: =VLOOKUP(EU3,DATA!$I$5:$J$49,2) -> 3 | EV16: =VLOOKUP(EV3,DATA!$I$5:$J$49,2) -> 3 | EW16: =VLOOKUP(EW3,DATA!$I$5:$J$49,2) -> 3 | EX16: =VLOOKUP(EX3,DATA!$I$5:$J$49,2) -> 3 | EY16: =VLOOKUP(EY3,DATA!$I$5:$J$49,2) -> 3 | EZ16: =VLOOKUP(EZ3,DATA!$I$5:$J$49,2) -> 3 | FA16: =VLOOKUP(FA3,DATA!$I$5:$J$49,2) -> 3 | FB16: =VLOOKUP(FB3,DATA!$I$5:$J$49,2) -> 3 | FC16: =VLOOKUP(FC3,DATA!$I$5:$J$49,2) -> 3 | FD16: =VLOOKUP(FD3,DATA!$I$5:$J$49,2) -> 3 | FE16: =VLOOKUP(FE3,DATA!$I$5:$J$49,2) -> 3 | FF16: =VLOOKUP(FF3,DATA!$I$5:$J$49,2) -> 3 | FG16: =VLOOKUP(FG3,DATA!$I$5:$J$49,2) -> 3 | FH16: =VLOOKUP(FH3,DATA!$I$5:$J$49,2) -> 3 | FI16: =VLOOKUP(FI3,DATA!$I$5:$J$49,2) -> 3 | FJ16: =VLOOKUP(FJ3,DATA!$I$5:$J$49,2) -> 3 | FK16: =VLOOKUP(FK3,DATA!$I$5:$J$49,2) -> 3 | FL16: =VLOOKUP(FL3,DATA!$I$5:$J$49,2) -> 3 | FM16: =VLOOKUP(FM3,DATA!$I$5:$J$49,2) -> 3 | FN16: =VLOOKUP(FN3,DATA!$I$5:$J$49,2) -> 3 | FO16: =VLOOKUP(FO3,DATA!$I$5:$J$49,2) -> 3 | FP16: =VLOOKUP(FP3,DATA!$I$5:$J$49,2) -> 3 | FQ16: =VLOOKUP(FQ3,DATA!$I$5:$J$49,2) -> 3 | FR16: =VLOOKUP(FR3,DATA!$I$5:$J$49,2) -> 3 | FS16: =VLOOKUP(FS3,DATA!$I$5:$J$49,2) -> 3 | FT16: =VLOOKUP(FT3,DATA!$I$5:$J$49,2) -> 3 | FU16: =VLOOKUP(FU3,DATA!$I$5:$J$49,2) -> 3 | FV16: =VLOOKUP(FV3,DATA!$I$5:$J$49,2) -> 3 | FY16: =VLOOKUP(FY3,DATA!$I$5:$J$49,2) -> 4 | FZ16: =VLOOKUP(FZ3,DATA!$I$5:$J$49,2) -> 4 | GA16: =VLOOKUP(GA3,DATA!$I$5:$J$49,2) -> 4 | GB16: =VLOOKUP(GB3,DATA!$I$5:$J$49,2) -> 4 | GC16: =VLOOKUP(GC3,DATA!$I$5:$J$49,2) -> 4 | GD16: =VLOOKUP(GD3,DATA!$I$5:$J$49,2) -> 4 | GE16: =VLOOKUP(GE3,DATA!$I$5:$J$49,2) -> 4 | GF16: =VLOOKUP(GF3,DATA!$I$5:$J$49,2) -> 4 | GG16: =VLOOKUP(GG3,DATA!$I$5:$J$49,2) -> 4 | GH16: =VLOOKUP(GH3,DATA!$I$5:$J$49,2) -> 4 | GI16: =VLOOKUP(GI3,DATA!$I$5:$J$49,2) -> 4 | GJ16: =VLOOKUP(GJ3,DATA!$I$5:$J$49,2) -> 4 | GK16: =VLOOKUP(GK3,DATA!$I$5:$J$49,2) -> 4 | GL16: =VLOOKUP(GL3,DATA!$I$5:$J$49,2) -> 4 | GM16: =VLOOKUP(GM3,DATA!$I$5:$J$49,2) -> 4 | GN16: =VLOOKUP(GN3,DATA!$I$5:$J$49,2) -> 4 | GO16: =VLOOKUP(GO3,DATA!$I$5:$J$49,2) -> 4 | GP16: =VLOOKUP(GP3,DATA!$I$5:$J$49,2) -> 4 | GQ16: =VLOOKUP(GQ3,DATA!$I$5:$J$49,2) -> 4 | GR16: =VLOOKUP(GR3,DATA!$I$5:$J$49,2) -> 4 | GS16: =VLOOKUP(GS3,DATA!$I$5:$J$49,2) -> 4 | GT16: =VLOOKUP(GT3,DATA!$I$5:$J$49,2) -> 4 | GU16: =VLOOKUP(GU3,DATA!$I$5:$J$49,2) -> 4 | GV16: =VLOOKUP(GV3,DATA!$I$5:$J$49,2) -> 4 | GW16: =VLOOKUP(GW3,DATA!$I$5:$J$49,2) -> 4 | GX16: =VLOOKUP(GX3,DATA!$I$5:$J$49,2) -> 4 | GY16: =VLOOKUP(GY3,DATA!$I$5:$J$49,2) -> 4 | GZ16: =VLOOKUP(GZ3,DATA!$I$5:$J$49,2) -> 4 | HA16: =VLOOKUP(HA3,DATA!$I$5:$J$49,2) -> 4 | HB16: =VLOOKUP(HB3,DATA!$I$5:$J$49,2) -> 4 | HC16: =VLOOKUP(HC3,DATA!$I$5:$J$49,2) -> 4 | HD16: =VLOOKUP(HD3,DATA!$I$5:$J$49,2) -> 4 | HE16: =VLOOKUP(HE3,DATA!$I$5:$J$49,2) -> 4 | HF16: =VLOOKUP(HF3,DATA!$I$5:$J$49,2) -> 4 | HG16: =VLOOKUP(HG3,DATA!$I$5:$J$49,2) -> 4 | HH16: =VLOOKUP(HH3,DATA!$I$5:$J$49,2) -> 4 | HI16: =VLOOKUP(HI3,DATA!$I$5:$J$49,2) -> 4 | HJ16: =VLOOKUP(HJ3,DATA!$I$5:$J$49,2) -> 4 | HK16: =VLOOKUP(HK3,DATA!$I$5:$J$49,2) -> 4 | HL16: =VLOOKUP(HL3,DATA!$I$5:$J$49,2) -> 4 | HM16: =VLOOKUP(HM3,DATA!$I$5:$J$49,2) -> 4 | HN16: =VLOOKUP(HN3,DATA!$I$5:$J$49,2) -> 4 | HO16: =VLOOKUP(HO3,DATA!$I$5:$J$49,2) -> 4 | HP16: =VLOOKUP(HP3,DATA!$I$5:$J$49,2) -> 4 | HQ16: =VLOOKUP(HQ3,DATA!$I$5:$J$49,2) -> 4 | HR16: =VLOOKUP(HR3,DATA!$I$5:$J$49,2) -> 4 | HS16: =VLOOKUP(HS3,DATA!$I$5:$J$49,2) -> 4 | HT16: =VLOOKUP(HT3,DATA!$I$5:$J$49,2) -> 4 | HU16: =VLOOKUP(HU3,DATA!$I$5:$J$49,2) -> 4 | HV16: =VLOOKUP(HV3,DATA!$I$5:$J$49,2) -> 4 | HW16: =VLOOKUP(HW3,DATA!$I$5:$J$49,2) -> 4 | HX16: =VLOOKUP(HX3,DATA!$I$5:$J$49,2) -> 4 | HY16: =VLOOKUP(HY3,DATA!$I$5:$J$49,2) -> 4 | HZ16: =VLOOKUP(HZ3,DATA!$I$5:$J$49,2) -> 4 | IA16: =VLOOKUP(IA3,DATA!$I$5:$J$49,2) -> 4 | IB16: =VLOOKUP(IB3,DATA!$I$5:$J$49,2) -> 4 | IC16: =VLOOKUP(IC3,DATA!$I$5:$J$49,2) -> 4 | ID16: =VLOOKUP(ID3,DATA!$I$5:$J$49,2) -> 4 | IE16: =VLOOKUP(IE3,DATA!$I$5:$J$49,2) -> 4 | IF16: =VLOOKUP(IF3,DATA!$I$5:$J$49,2) -> 4 | IG16: =VLOOKUP(IG3,DATA!$I$5:$J$49,2) -> 4 | IH16: =VLOOKUP(IH3,DATA!$I$5:$J$49,2) -> 4
D17: Set 1 | BL17: Set 2 | DN17: Set 3 | FY17: Set 4
